Organisation name,Organisation Code,Directorate,Service Category label,Service Category code,Supplier name,Payment date,Transaction number,Net Amount,Purpose of spend,Procurement classification
Southend-on-Sea Borough Council,http://opendatacommunities.org/id/unitary-authority/southend,ED Adults & Communities,Cultural And Related Services,4225,Wix.Com 1067366247,01/08/2023,12061160,10.5,Halloween Parade website - monthly fee,Digital Goods - Applications (Excludes Games) (5817)
Southend-on-Sea Borough Council,http://opendatacommunities.org/id/unitary-authority/southend,ED Finance & Resources,Central Services to the Public,7110,Thomson Reuters UK Ltd,01/08/2023,12061160,187.2,Consultant contract for PH Pilots project MEP,Professional Services - Def (8999)
Southend-on-Sea Borough Council,http://opendatacommunities.org/id/unitary-authority/southend,ED Finance & Resources,Central Services to the Public,7110,Thomson Reuters UK Ltd,01/08/2023,12061160,187.2,Consultant contract for PH Pilots project PH Assessor,Professional Services - Def (8999)
Southend-on-Sea Borough Council,http://opendatacommunities.org/id/unitary-authority/southend,ED Children & Public Health,Children And Education Services,3396,Starbucks Coffee,01/08/2023,12061160,8.74,TM breakfast. CIN visit.,Fast Food Restaurants (5814)
Southend-on-Sea Borough Council,http://opendatacommunities.org/id/unitary-authority/southend,ED Children & Public Health,Children And Education Services,3396,Starbucks Coffee,01/08/2023,12061160,5.6,TM breakfast. CIN visit.,Fast Food Restaurants (5814)
Southend-on-Sea Borough Council,http://opendatacommunities.org/id/unitary-authority/southend,ED Children & Public Health,Children And Education Services,3396,McDonalds 859,01/08/2023,12061160,12.47,breakfast bought for HC and LA as part of postive engagement.,Fast Food Restaurants (5814)
Southend-on-Sea Borough Council,http://opendatacommunities.org/id/unitary-authority/southend,ED Neighbourhoods & Environment,Central Services to the Public,7175,Dvla Vehicle Tax,01/08/2023,12061160,320,Road Fund Licence vehicle registration REDACTED PERSONAL DATA.,Tax Payments (9311)
Southend-on-Sea Borough Council,http://opendatacommunities.org/id/unitary-authority/southend,ED Neighbourhoods & Environment,Central Services to the Public,7175,Dvla Vehicle Tax,01/08/2023,12061160,320,Road Fund Licence Vehicle Registration REDACTED PERSONAL DATA.,Tax Payments (9311)
Southend-on-Sea Borough Council,http://opendatacommunities.org/id/unitary-authority/southend,ED Neighbourhoods & Environment,Central Services to the Public,7175,Dvla Vehicle Tax,01/08/2023,12061160,320,Road Fund Licence vehicle registration REDACTED PERSONAL DATA.,Tax Payments (9311)
Southend-on-Sea Borough Council,http://opendatacommunities.org/id/unitary-authority/southend,ED Neighbourhoods & Environment,Central Services to the Public,7175,Dvla Vehicle Tax,01/08/2023,12061160,320,Road Fund Licence vehicle registration REDACTED PERSONAL DATA.,Tax Payments (9311)
Southend-on-Sea Borough Council,http://opendatacommunities.org/id/unitary-authority/southend,ED Children & Public Health,Children And Education Services,3441,Favorite Chicken,01/08/2023,12061160,6.49,Refreshments for young person as a positive activity.,Fast Food Restaurants (5814)
Southend-on-Sea Borough Council,http://opendatacommunities.org/id/unitary-authority/southend,ED Children & Public Health,Children And Education Services,3441,Favorite Chicken,01/08/2023,12061160,8.49,Refreshments for young person as a positive activity.,Fast Food Restaurants (5814)
Southend-on-Sea Borough Council,http://opendatacommunities.org/id/unitary-authority/southend,ED Adults & Communities,Adult Social Care,1231,Greater Anglia Rail,01/08/2023,12061160,27.1,Mental Health hospital discharge planning meeting attendance for Social Worker,Passenger Railways (4112)
Southend-on-Sea Borough Council,http://opendatacommunities.org/id/unitary-authority/southend,"ED Strategy, Change & Governance",Central Services to the Public,7140,Amznmktplace,01/08/2023,12061160,43.04,replacement door closers for chamber,Misc Speciality Retail (5999)
Southend-on-Sea Borough Council,http://opendatacommunities.org/id/unitary-authority/southend,ED Adults & Communities,Cultural And Related Services,4025,B & Q 1188,01/08/2023,12061160,7.54,Tool bit for repair to part of the Ekco Exhibition.,Home Supply Warehouse Stores (5200)
Southend-on-Sea Borough Council,http://opendatacommunities.org/id/unitary-authority/southend,ED Children & Public Health,Children And Education Services,3030,Amznmktplace,01/08/2023,12061160,21.99,bulk buy toilet rolls for fun days x 3 porta loos,Misc Speciality Retail (5999)
Southend-on-Sea Borough Council,http://opendatacommunities.org/id/unitary-authority/southend,ED Children & Public Health,Children And Education Services,3396,Hockley Airsoft Arena Ltd,01/08/2023,12061160,27.2,AIPT summer holiday activity at Hockley Airsoft for young person (JB).,Amusement/Rec Serv - Def (7999)
Southend-on-Sea Borough Council,http://opendatacommunities.org/id/unitary-authority/southend,ED Children & Public Health,Children And Education Services,3471,Asda Superstore,01/08/2023,12061160,6.1,cutlery and food for summer youth programme at syc,Grocery Stores/Supermarkets (5411)
Southend-on-Sea Borough Council,http://opendatacommunities.org/id/unitary-authority/southend,ED Children & Public Health,Children And Education Services,3471,Asda Superstore,01/08/2023,12061160,58.9,cutlery and food for summer youth programme at syc,Grocery Stores/Supermarkets (5411)
Southend-on-Sea Borough Council,http://opendatacommunities.org/id/unitary-authority/southend,ED Children & Public Health,Children And Education Services,3471,Lidl Gb,01/08/2023,12061160,65.08,food for summer youth programme at syc,Grocery Stores/Supermarkets (5411)
Southend-on-Sea Borough Council,http://opendatacommunities.org/id/unitary-authority/southend,ED Children & Public Health,Children And Education Services,3491,Parkway,01/08/2023,12061160,5.7,Parking for Court,"Parking Lots, Meters, Garages (7523)"
Southend-on-Sea Borough Council,http://opendatacommunities.org/id/unitary-authority/southend,ED Adults & Communities,Cultural And Related Services,4290,Amznmktplace,01/08/2023,12061160,18.99,Toilet rolls for use by staff and customers at Leigh Library,Misc Speciality Retail (5999)
Southend-on-Sea Borough Council,http://opendatacommunities.org/id/unitary-authority/southend,ED Adults & Communities,Cultural And Related Services,7111,Thomson Reuters UK Ltd,01/08/2023,12061160,96,JCT ON DEMAND MW2016 for Prj 1785,Professional Services - Def (8999)
Southend-on-Sea Borough Council,http://opendatacommunities.org/id/unitary-authority/southend,ED Adults & Communities,Cultural And Related Services,4045,Asda Stores Rayleigh42,01/08/2023,12061160,22.14,Refreshments for V&A curators visit and meeting. Beecroft Art Gallery,Grocery Stores/Supermarkets (5411)
Southend-on-Sea Borough Council,http://opendatacommunities.org/id/unitary-authority/southend,ED Finance & Resources,Central Services to the Public,7110,Thomson Reuters UK Ltd,01/08/2023,12061160,187.2,Consultant Contract project 1800 MEP,Professional Services - Def (8999)
Southend-on-Sea Borough Council,http://opendatacommunities.org/id/unitary-authority/southend,ED Finance & Resources,Central Services to the Public,7110,Thomson Reuters UK Ltd,01/08/2023,12061160,187.2,SE consultant contract for project 1800,Professional Services - Def (8999)
Southend-on-Sea Borough Council,http://opendatacommunities.org/id/unitary-authority/southend,ED Adults & Communities,Cultural And Related Services,4055,Zettle_*pie Hole Ltd,01/08/2023,12061160,15.5,Lunch during FeelGood Festival,Eating Places/Restaurants (5812)
Southend-on-Sea Borough Council,http://opendatacommunities.org/id/unitary-authority/southend,ED Children & Public Health,Children And Education Services,3471,Amz*alison Kingsgate L,01/08/2023,12061160,-12.47,Credit Voucher Amz*REDACTED PERSONAL DATA,Misc Speciality Retail (5999)
Southend-on-Sea Borough Council,http://opendatacommunities.org/id/unitary-authority/southend,ED Children & Public Health,Children And Education Services,3471,Amz*alison Kingsgate L,01/08/2023,12061160,-12.48,Credit Voucher Amz*REDACTED PERSONAL DATA,Misc Speciality Retail (5999)
Southend-on-Sea Borough Council,http://opendatacommunities.org/id/unitary-authority/southend,ED Adults & Communities,Cultural And Related Services,4120,Sumup *southend Pier Mus,01/08/2023,12061160,105,Dvds to sell on the pier,Charitable/Soc Service Orgs (8398)
Southend-on-Sea Borough Council,http://opendatacommunities.org/id/unitary-authority/southend,ED Adults & Communities,Cultural And Related Services,4280,Amznmktplace,01/08/2023,12061160,11.97,Academic diaries for use at Westcliff and Kent Elms libraries,Misc Speciality Retail (5999)
Southend-on-Sea Borough Council,http://opendatacommunities.org/id/unitary-authority/southend,ED Children & Public Health,Children And Education Services,3030,Asda Superstore,01/08/2023,12061160,5.79,Resources for family centre sessions,Grocery Stores/Supermarkets (5411)
Southend-on-Sea Borough Council,http://opendatacommunities.org/id/unitary-authority/southend,ED Neighbourhoods & Environment,Environmental And Regulatory Services,4525,P Westcliff To,01/08/2023,12061160,21.4,train fees re hospital visit to REDACTED PERSONAL DATA re his HR update and welfare concern,Passenger Railways (4112)
Southend-on-Sea Borough Council,http://opendatacommunities.org/id/unitary-authority/southend,ED Children & Public Health,Children And Education Services,3099,Amz*amazon.Co.Uk,01/08/2023,12061160,-9.99,Credit Voucher Amz*amazon.Co.Uk,Misc Speciality Retail (5999)
Southend-on-Sea Borough Council,http://opendatacommunities.org/id/unitary-authority/southend,ED Growth & Housing,Planning Services,5641,Trainline,01/08/2023,12061160,-3.6,Credit Voucher Trainline,Passenger Railways (4112)
Southend-on-Sea Borough Council,http://opendatacommunities.org/id/unitary-authority/southend,"ED Strategy, Change & Governance",Central Services to the Public,2045,Facebk *2ytt4sppp2,01/08/2023,12061160,63.37,Various FB campaigns,Advertising Services (7311)
Southend-on-Sea Borough Council,http://opendatacommunities.org/id/unitary-authority/southend,ED Children & Public Health,Children And Education Services,3492,Www.Adventureisland.Co.Uk,01/08/2023,12061160,168,Adventure Island tickets for a family in need and to support looked after children to return home wi *,Amusement/Rec Serv - Def (7999)
Southend-on-Sea Borough Council,http://opendatacommunities.org/id/unitary-authority/southend,ED Adults & Communities,Cultural And Related Services,4256,Amznmktplace,01/08/2023,12061160,20.88,Blue labels for children's books - stationery,Misc Speciality Retail (5999)
Southend-on-Sea Borough Council,http://opendatacommunities.org/id/unitary-authority/southend,ED Adults & Communities,Cultural And Related Services,4290,Amznmktplace,01/08/2023,12061160,7.98,Batteries for us in office phones at Leigh Library,Misc Speciality Retail (5999)
Southend-on-Sea Borough Council,http://opendatacommunities.org/id/unitary-authority/southend,ED Adults & Communities,Cultural And Related Services,4270,Amznmktplace,01/08/2023,12061160,13.72,Batteries for use in staff safe at Southchurch Library (plus back-ups for future problems),Misc Speciality Retail (5999)
Southend-on-Sea Borough Council,http://opendatacommunities.org/id/unitary-authority/southend,ED Children & Public Health,Children And Education Services,3396,Poundstretcher 357,01/08/2023,12061160,46.68,Toiletries for CH placement move.,Variety Stores (5331)
Southend-on-Sea Borough Council,http://opendatacommunities.org/id/unitary-authority/southend,ED Children & Public Health,Children And Education Services,3030,Asda Superstore,01/08/2023,12061160,3.5,Snacks and resources for sessions,Grocery Stores/Supermarkets (5411)
Southend-on-Sea Borough Council,http://opendatacommunities.org/id/unitary-authority/southend,ED Children & Public Health,Children And Education Services,3030,Asda Superstore,01/08/2023,12061160,3.45,Snacks and resources for sessions,Grocery Stores/Supermarkets (5411)
Southend-on-Sea Borough Council,http://opendatacommunities.org/id/unitary-authority/southend,ED Adults & Communities,Cultural And Related Services,4055,Gct Ltd T/A Gtse,01/08/2023,12061160,33.74,Consumables for bridge commission install,Industrial Supplies - Def (5085)
Southend-on-Sea Borough Council,http://opendatacommunities.org/id/unitary-authority/southend,ED Adults & Communities,Cultural And Related Services,4025,The Range,01/08/2023,12061160,14.49,Items for the Planetarium.,Misc Home Furnishing (5719)
Southend-on-Sea Borough Council,http://opendatacommunities.org/id/unitary-authority/southend,ED Children & Public Health,Children And Education Services,3030,Amznmktplace,01/08/2023,12061160,3.86,stationery for fun days x 3,Misc Speciality Retail (5999)
Southend-on-Sea Borough Council,http://opendatacommunities.org/id/unitary-authority/southend,ED Children & Public Health,Children And Education Services,3030,Amznmktplace,01/08/2023,12061160,7.16,stationery for fun days x 3,Misc Speciality Retail (5999)
Southend-on-Sea Borough Council,http://opendatacommunities.org/id/unitary-authority/southend,ED Adults & Communities,Adult Social Care,1209,Amznmktplace,01/08/2023,12061160,13.7,2 x Q-Connect Quick Notes 76 x 76mm Yellow (12 Pack) KF10502,Misc Speciality Retail (5999)
Southend-on-Sea Borough Council,http://opendatacommunities.org/id/unitary-authority/southend,ED Adults & Communities,Adult Social Care,1209,Amznmktplace,01/08/2023,12061160,17.19,Swift Strung Tags Brown Reinforced Card Clothing Parcel Label StringHanging Gift Swing Tickets Kraf *,Misc Speciality Retail (5999)
Southend-on-Sea Borough Council,http://opendatacommunities.org/id/unitary-authority/southend,ED Adults & Communities,Adult Social Care,1209,Amznmktplace,01/08/2023,12061160,30.5,"Sellotape 1443268 Original Golden Tape Roll Non-static Easy-Tear, Large24 mm x 66 m - Pack 12",Misc Speciality Retail (5999)
Southend-on-Sea Borough Council,http://opendatacommunities.org/id/unitary-authority/southend,ED Adults & Communities,Adult Social Care,1209,Amznmktplace,01/08/2023,12061160,19.41,"2 x WAIZHIUA 100 Pcs Large Rubber Bands, 20cm/8inch Heavy Duty Trash Can Bands Strong Elastic Bands *",Misc Speciality Retail (5999)
Southend-on-Sea Borough Council,http://opendatacommunities.org/id/unitary-authority/southend,ED Adults & Communities,Adult Social Care,1209,Amznmktplace,01/08/2023,12061160,71.86,"2 x WAIZHIUA 100 Pcs Large Rubber Bands, 20cm/8inch Heavy Duty Trash Can Bands Strong Elastic Bands *",Misc Speciality Retail (5999)
Southend-on-Sea Borough Council,http://opendatacommunities.org/id/unitary-authority/southend,ED Finance & Resources,Children And Education Services,3201,Adobe Systems Software,01/08/2023,12061160,33.96,Adobe captivate software for L&D team,Computer Software Stores (5734)
Southend-on-Sea Borough Council,http://opendatacommunities.org/id/unitary-authority/southend,ED Adults & Communities,Cultural And Related Services,4030,Booker Ltd - 38622734,01/08/2023,12061160,109.13,Food and drink supplies for Priory VC cafe,Grocery Stores/Supermarkets (5411)
Southend-on-Sea Borough Council,http://opendatacommunities.org/id/unitary-authority/southend,ED Adults & Communities,Cultural And Related Services,4030,Booker Ltd - 38622734,01/08/2023,12061160,158.48,Food and drink supplies for Priory VC cafe,Grocery Stores/Supermarkets (5411)
Southend-on-Sea Borough Council,http://opendatacommunities.org/id/unitary-authority/southend,ED Growth & Housing,Planning Services,5641,Hart Road Mini Mart,01/08/2023,12061160,3.98,Refreshments for July 23,Grocery Stores/Supermarkets (5411)
Southend-on-Sea Borough Council,http://opendatacommunities.org/id/unitary-authority/southend,ED Growth & Housing,Planning Services,5641,Hart Road Mini Mart,01/08/2023,12061160,7.76,Refreshments for July 23,Grocery Stores/Supermarkets (5411)
Southend-on-Sea Borough Council,http://opendatacommunities.org/id/unitary-authority/southend,ED Growth & Housing,Planning Services,5641,Sumup *3d Filaprint,01/08/2023,12061160,150,3D Print training session 31.07.23,Misc Speciality Retail (5999)
Southend-on-Sea Borough Council,http://opendatacommunities.org/id/unitary-authority/southend,ED Adults & Communities,Cultural And Related Services,4120,Amznmktplace,01/08/2023,12061160,35.98,De-ironised water for the pier trains,Misc Speciality Retail (5999)
Southend-on-Sea Borough Council,http://opendatacommunities.org/id/unitary-authority/southend,"ED Strategy, Change & Governance",Central Services to the Public,5350,123-Reg,01/08/2023,12061160,40.78,forwardmotionsouthessex.com domain renewal,Computer Network/Info Svcs (4816)
Southend-on-Sea Borough Council,http://opendatacommunities.org/id/unitary-authority/southend,"ED Strategy, Change & Governance",Central Services to the Public,7145,Laurence Matthews Ar,01/08/2023,12061160,97.35,Art supplies for painting of Porters Civic House,Artist/Craft Shops (5970)
Southend-on-Sea Borough Council,http://opendatacommunities.org/id/unitary-authority/southend,ED Children & Public Health,Children And Education Services,3491,Sainsburys S/mkts,01/08/2023,12061160,1.25,Food for family in need,Grocery Stores/Supermarkets (5411)
Southend-on-Sea Borough Council,http://opendatacommunities.org/id/unitary-authority/southend,ED Children & Public Health,Children And Education Services,3492,Sainsburys S/mkts,01/08/2023,12061160,7.86,Food for family in need,Grocery Stores/Supermarkets (5411)
Southend-on-Sea Borough Council,http://opendatacommunities.org/id/unitary-authority/southend,ED Children & Public Health,Children And Education Services,3492,Southend Supermarket L,01/08/2023,12061160,11.78,Halal Food for family in need,Grocery Stores/Supermarkets (5411)
Southend-on-Sea Borough Council,http://opendatacommunities.org/id/unitary-authority/southend,"ED Strategy, Change & Governance",Central Services to the Public,7096,Amznmktplace,01/08/2023,12061160,15.67,Milk jug for Tickfield self service area,Misc Speciality Retail (5999)
Southend-on-Sea Borough Council,http://opendatacommunities.org/id/unitary-authority/southend,ED Adults & Communities,Cultural And Related Services,4030,Sp Koala Slings,01/08/2023,12061160,114.95,Twin sling carrier for visitor loan use at Prittlewell Priory,Children/Infants Wear Store (5641)
Southend-on-Sea Borough Council,http://opendatacommunities.org/id/unitary-authority/southend,ED Children & Public Health,Children And Education Services,3265,Google Ads2830285278,01/08/2023,12061160,139.36,Google paid search advertising to drive prospective foster carer enquiries,Advertising Services (7311)
Southend-on-Sea Borough Council,http://opendatacommunities.org/id/unitary-authority/southend,ED Children & Public Health,Children And Education Services,3030,Home Bargains Southend,01/08/2023,12061160,2.97,Resources for Family Centre sessions,Misc Gen Merchandise - Def (5399)
Southend-on-Sea Borough Council,http://opendatacommunities.org/id/unitary-authority/southend,ED Children & Public Health,Children And Education Services,3030,Asda Superstore,01/08/2023,12061160,12.5,Resources for Family Centre sessions,Grocery Stores/Supermarkets (5411)
Southend-on-Sea Borough Council,http://opendatacommunities.org/id/unitary-authority/southend,ED Children & Public Health,Children And Education Services,3030,Asda Superstore,01/08/2023,12061160,9.67,Resources for Family Centre sessions,Grocery Stores/Supermarkets (5411)
Southend-on-Sea Borough Council,http://opendatacommunities.org/id/unitary-authority/southend,ED Children & Public Health,Children And Education Services,3396,Escape Live - Southend,01/08/2023,12061160,48,Positive activity (escape room) booked for RMDB- looked after child.,Tourist Attractions And Xhbt (7991)
Southend-on-Sea Borough Council,http://opendatacommunities.org/id/unitary-authority/southend,ED Adults & Communities,Cultural And Related Services,4015,Ryman,01/08/2023,12061160,19.99,Office supplies.,Stationery Stores (5943)
Southend-on-Sea Borough Council,http://opendatacommunities.org/id/unitary-authority/southend,ED Adults & Communities,Cultural And Related Services,4055,P Chalkwell To,01/08/2023,12061160,31.6,Train Ticket - Studio Visits - Exhibition Research,Passenger Railways (4112)
Southend-on-Sea Borough Council,http://opendatacommunities.org/id/unitary-authority/southend,ED Children & Public Health,Children And Education Services,3396,O2 Uk,01/08/2023,12061160,15,Mobile phone top up for CP child - OM,Phone Serv/Equip Non-Util (4812)
Southend-on-Sea Borough Council,http://opendatacommunities.org/id/unitary-authority/southend,ED Finance & Resources,Central Services to the Public,1006,Amznmktplace,01/08/2023,12061160,24.98, of home working equipment for officer,Misc Speciality Retail (5999)
Southend-on-Sea Borough Council,http://opendatacommunities.org/id/unitary-authority/southend,ED Finance & Resources,Central Services to the Public,1006,Amznmktplace,01/08/2023,12061160,24.99, of home working equipment for officer,Misc Speciality Retail (5999)
Southend-on-Sea Borough Council,http://opendatacommunities.org/id/unitary-authority/southend,ED Adults & Communities,Adult Social Care,1209,Amznmktplace,01/08/2023,12061160,28.48,2 x Q-Connect Ruled Stitch Bound Executive Pad 52 Leaves 104 Pages A4White (Pack of 10),Misc Speciality Retail (5999)
Southend-on-Sea Borough Council,http://opendatacommunities.org/id/unitary-authority/southend,ED Adults & Communities,Adult Social Care,1209,Amznmktplace,01/08/2023,12061160,29.1,edding 780 paint marker - white - 10 pens - round tip 0.8 mm - paint markerfor marking and labellin *,Misc Speciality Retail (5999)
Southend-on-Sea Borough Council,http://opendatacommunities.org/id/unitary-authority/southend,ED Adults & Communities,Central Services to the Public,7540,Ate (UK) Ltd,01/08/2023,12061160,88.02,This purchase is to supply a trailer damper to the Parks mower repair workshop,Towing Services (7549)
Southend-on-Sea Borough Council,http://opendatacommunities.org/id/unitary-authority/southend,ED Adults & Communities,Central Services to the Public,7540,Https Www Redstoneuk Com,01/08/2023,12061160,319.8,This purchase is to supply tyres & tubes to the Parks mower repair workshop.,Automotive Tire Stores (5532)
Southend-on-Sea Borough Council,http://opendatacommunities.org/id/unitary-authority/southend,ED Adults & Communities,Cultural And Related Services,4025,Amznmktplace,01/08/2023,12061160,18.17,Ink cartridges for Central Museum printer,Misc Speciality Retail (5999)
Southend-on-Sea Borough Council,http://opendatacommunities.org/id/unitary-authority/southend,ED Adults & Communities,Cultural And Related Services,4030,Fairfields Farm Produc,01/08/2023,12061160,108,Crisps for sale Priory VC cafe,Misc Food Stores - Default (5499)
Southend-on-Sea Borough Council,http://opendatacommunities.org/id/unitary-authority/southend,ED Adults & Communities,Cultural And Related Services,4030,Www.Rossiicecream.Com,01/08/2023,12061160,145.57,Rossis ice cream for sale Priory VC cafe,Grocery Stores/Supermarkets (5411)
Southend-on-Sea Borough Council,http://opendatacommunities.org/id/unitary-authority/southend,ED Adults & Communities,Cultural And Related Services,4045,Sp Robinvalley Ltd,01/08/2023,12061160,314.44,Retail stock for museum shops,Jewelry Stores (5944)
Southend-on-Sea Borough Council,http://opendatacommunities.org/id/unitary-authority/southend,ED Adults & Communities,Cultural And Related Services,4120,Amznmktplace,01/08/2023,12061160,16.67,Gloves for work on the pier,Misc Speciality Retail (5999)
Southend-on-Sea Borough Council,http://opendatacommunities.org/id/unitary-authority/southend,ED Adults & Communities,Cultural And Related Services,4225,Airbnb * Hmjx2xh5ea,02/08/2023,12061160,285.5,Southend City Jam - Accommodation for headline sponsor (REDACTED PERSONAL DATA),Travel Agencies (4722)
Southend-on-Sea Borough Council,http://opendatacommunities.org/id/unitary-authority/southend,ED Adults & Communities,Cultural And Related Services,4200,Lidl Gb Southend,02/08/2023,12061160,6.14,Food and drink for volunteer group,Grocery Stores/Supermarkets (5411)
Southend-on-Sea Borough Council,http://opendatacommunities.org/id/unitary-authority/southend,ED Children & Public Health,Children And Education Services,3290,McDonalds,02/08/2023,12061160,15.95,Direct work with two young people (REDACTED PERSONAL DATA)Lunch expenses for both young people only,Fast Food Restaurants (5814)
Southend-on-Sea Borough Council,http://opendatacommunities.org/id/unitary-authority/southend,ED Adults & Communities,Cultural And Related Services,7515,Sumup *estuary Wholesale,02/08/2023,12061160,93.09,Flowers for floristry orders,Misc Speciality Retail (5999)
Southend-on-Sea Borough Council,http://opendatacommunities.org/id/unitary-authority/southend,ED Adults & Communities,Cultural And Related Services,4045,Co Op Group Food,02/08/2023,12061160,5.1,Refreshments for meeting at gallery.,Grocery Stores/Supermarkets (5411)
Southend-on-Sea Borough Council,http://opendatacommunities.org/id/unitary-authority/southend,ED Adults & Communities,Cultural And Related Services,4030,The Range,02/08/2023,12061160,9.99,Materials for signage at Anglo Saxon weekend event at Prittlewell Priory,Misc Home Furnishing (5719)
Southend-on-Sea Borough Council,http://opendatacommunities.org/id/unitary-authority/southend,ED Adults & Communities,Cultural And Related Services,4015,Wh Smith Southend,02/08/2023,12061160,12.99,Materials for event posters for museums,News Dealers/Newsstands (5994)
Southend-on-Sea Borough Council,http://opendatacommunities.org/id/unitary-authority/southend,ED Children & Public Health,Children And Education Services,3265,Facebk Pvxwbu3tk2,02/08/2023,12061160,400,Targeted facebook and instagram advertising to raise awareness and drive prospective foster carer en *,Advertising Services (7311)
Southend-on-Sea Borough Council,http://opendatacommunities.org/id/unitary-authority/southend,ED Children & Public Health,Children And Education Services,3030,Lidl Gb,02/08/2023,12061160,3.85,Resources for Family Centre sessions,Grocery Stores/Supermarkets (5411)
Southend-on-Sea Borough Council,http://opendatacommunities.org/id/unitary-authority/southend,ED Children & Public Health,Children And Education Services,3030,Lidl Gb,02/08/2023,12061160,3.78,Resources for Family Centre sessions,Grocery Stores/Supermarkets (5411)
Southend-on-Sea Borough Council,http://opendatacommunities.org/id/unitary-authority/southend,ED Children & Public Health,Children And Education Services,3396,Odeon Cinemas,02/08/2023,12061160,40,"Odeon receipt attached. This was purchased for 4 people, however one person could not attend. One ti *",Motion Picture Theatres (7832)
Southend-on-Sea Borough Council,http://opendatacommunities.org/id/unitary-authority/southend,ED Adults & Communities,Cultural And Related Services,4256,Www.Forever-Card.Com,02/08/2023,12061160,448.92,Retail Merchandise for the Forum and branch libraries,Gift/Card/Novelty And Souvenir Stores (5947)
Southend-on-Sea Borough Council,http://opendatacommunities.org/id/unitary-authority/southend,ED Adults & Communities,Cultural And Related Services,7520,Www.Nissen.Uk.Com,02/08/2023,12061160,424.38,Replacement sandpit cover from damages,Sporting Goods Stores (5941)
Southend-on-Sea Borough Council,http://opendatacommunities.org/id/unitary-authority/southend,ED Adults & Communities,Central Services to the Public,2041,Royals Southend Car Pa,02/08/2023,12061160,4.8,Cark park charge for officer attending support session at Park Inn hotel,"Parking Lots, Meters, Garages (7523)"
Southend-on-Sea Borough Council,http://opendatacommunities.org/id/unitary-authority/southend,ED Adults & Communities,Central Services to the Public,2041,Royals Southend Car Pa,02/08/2023,12061160,5.8,Car park charge for officer to attend support session at Park Inn hotel,"Parking Lots, Meters, Garages (7523)"
Southend-on-Sea Borough Council,http://opendatacommunities.org/id/unitary-authority/southend,ED Adults & Communities,Adult Social Care,1491,Amznmktplace,02/08/2023,12061160,35.18,Two Books - Used to inform the SSP Business unit of the care Act 2014,Misc Speciality Retail (5999)
Southend-on-Sea Borough Council,http://opendatacommunities.org/id/unitary-authority/southend,ED Adults & Communities,Central Services to the Public,7540,Essex Bearings,02/08/2023,12061160,381.45,This purchase is supply drive belts & bearings to the Parks mower repair workshop.,Metal Service Centers (5051)
Southend-on-Sea Borough Council,http://opendatacommunities.org/id/unitary-authority/southend,ED Adults & Communities,Cultural And Related Services,4015,Mailchimp,02/08/2023,12061160,20.91,Mailchimp subscription museums,Digital Goods - Large Digital Goods Merchant (5818)
Southend-on-Sea Borough Council,http://opendatacommunities.org/id/unitary-authority/southend,ED Adults & Communities,Cultural And Related Services,4025,Amznmktplace,02/08/2023,12061160,550.34,Projector for use in Planetarium,Misc Speciality Retail (5999)
Southend-on-Sea Borough Council,http://opendatacommunities.org/id/unitary-authority/southend,ED Neighbourhoods & Environment,Environmental And Regulatory Services,4575,Trainline,02/08/2023,12061160,228.74,Train fare for uni,Passenger Railways (4112)
Southend-on-Sea Borough Council,http://opendatacommunities.org/id/unitary-authority/southend,ED Growth & Housing,Planning Services,5641,Www.Cscs.Uk.Com,02/08/2023,12061160,180,Vouchers to purchase CSCS cards for SECTA clients,Member Organizations - Def (8699)
Southend-on-Sea Borough Council,http://opendatacommunities.org/id/unitary-authority/southend,ED Children & Public Health,Children And Education Services,3492,Premier Inn,01/08/2023,12061160,231,Accommodation required for family in need whilst home inhabitable,Premier Travel Inns (3811)
Southend-on-Sea Borough Council,http://opendatacommunities.org/id/unitary-authority/southend,ED Children & Public Health,Children And Education Services,3492,Premier Inn,01/08/2023,12061160,231,Accommodation required for family in need whilst home inhabitable,Premier Travel Inns (3811)
Southend-on-Sea Borough Council,http://opendatacommunities.org/id/unitary-authority/southend,ED Adults & Communities,Cultural And Related Services,4225,Amznmktplace,03/08/2023,12061160,188.88,City Jam - blow up beds for artists staying at Metal HQ,Misc Speciality Retail (5999)
Southend-on-Sea Borough Council,http://opendatacommunities.org/id/unitary-authority/southend,ED Children & Public Health,Children And Education Services,3590,Connoisseurs Wines,03/08/2023,12061160,20,electricity purchased for family in need,Grocery Stores/Supermarkets (5411)
Southend-on-Sea Borough Council,http://opendatacommunities.org/id/unitary-authority/southend,ED Children & Public Health,Children And Education Services,3105,Paxman Musical,03/08/2023,12061160,61.3,4 x packs of oils for brass instruments plus antibac spray,Music Stores/Pianos (5733)
Southend-on-Sea Borough Council,http://opendatacommunities.org/id/unitary-authority/southend,ED Children & Public Health,Children And Education Services,3396,Boots 937,03/08/2023,12061160,5.5,Medication for SG. CIN.,Drug Stores & Pharmacies (5912)
Southend-on-Sea Borough Council,http://opendatacommunities.org/id/unitary-authority/southend,ED Children & Public Health,Children And Education Services,3396,Odeon Cinemas,03/08/2023,12061160,-10,Credit Voucher Odeon Cinemas.,Motion Picture Theatres (7832)
Southend-on-Sea Borough Council,http://opendatacommunities.org/id/unitary-authority/southend,ED Children & Public Health,Children And Education Services,3396,Odeon Southend,03/08/2023,12061160,23.28,Food and drinks for Odeon for visit to see SG.,Motion Picture Theatres (7832)
Southend-on-Sea Borough Council,http://opendatacommunities.org/id/unitary-authority/southend,,,-,Amz*amazon.Co.Uk,03/08/2023,12061160,-29.94,Credit Voucher Amz*amazon.Co.Uk,Misc Speciality Retail (5999)
Southend-on-Sea Borough Council,http://opendatacommunities.org/id/unitary-authority/southend,ED Adults & Communities,Cultural And Related Services,4120,Amznbusiness,03/08/2023,12061160,36,Outdoor paint for Pier head beach huts,Misc Speciality Retail (5999)
Southend-on-Sea Borough Council,http://opendatacommunities.org/id/unitary-authority/southend,ED Adults & Communities,Cultural And Related Services,4035,Sumup *t S Wilmot Ltd,03/08/2023,12061160,150,Cards for sale in museum shop,Schools - Default (8299)
Southend-on-Sea Borough Council,http://opendatacommunities.org/id/unitary-authority/southend,ED Children & Public Health,Children And Education Services,3471,Spar Stores,03/08/2023,12061160,2.39,Ketchup for the fish and chip meal at St Cedd's for young people attending St Cedd's HAF summer holi *,Grocery Stores/Supermarkets (5411)
Southend-on-Sea Borough Council,http://opendatacommunities.org/id/unitary-authority/southend,ED Children & Public Health,Children And Education Services,3471,Amznmktplace,03/08/2023,12061160,15.48,Replacement Twister game for use at St Cedd's youth groups for young people ages 8-14yrs.,Misc Speciality Retail (5999)
Southend-on-Sea Borough Council,http://opendatacommunities.org/id/unitary-authority/southend,ED Children & Public Health,Children And Education Services,3471,Amznmktplace,03/08/2023,12061160,39.98,Correct frame sizes purchased for elephant posters for SYC and St Luke's,Misc Speciality Retail (5999)
Southend-on-Sea Borough Council,http://opendatacommunities.org/id/unitary-authority/southend,ED Children & Public Health,Children And Education Services,3471,Chris,03/08/2023,12061160,50.8,Fish and chip meals for all children attending the HAF Summer holiday activties at St Cedd's. Hot me *,Eating Places/Restaurants (5812)
Southend-on-Sea Borough Council,http://opendatacommunities.org/id/unitary-authority/southend,ED Children & Public Health,Children And Education Services,3471,Amznmktplace,03/08/2023,12061160,249.98,Replacement table tennis table for SYC for use at yoith group sessions for young people ages 8-25y. *,Misc Speciality Retail (5999)
Southend-on-Sea Borough Council,http://opendatacommunities.org/id/unitary-authority/southend,ED Adults & Communities,Cultural And Related Services,4225,Premier Inn,03/08/2023,12061160,107.99,City Jam - Accommodation costs for headline artists,Premier Travel Inns (3811)
Southend-on-Sea Borough Council,http://opendatacommunities.org/id/unitary-authority/southend,ED Adults & Communities,Cultural And Related Services,4225,Premier Inn,03/08/2023,12061160,343.97,City Jam artist accommodation,Premier Travel Inns (3811)
Southend-on-Sea Borough Council,http://opendatacommunities.org/id/unitary-authority/southend,ED Adults & Communities,Cultural And Related Services,4225,Premier Inn,03/08/2023,12061160,373.94,Accommodation for headline artists - City Jam,Premier Travel Inns (3811)
Southend-on-Sea Borough Council,http://opendatacommunities.org/id/unitary-authority/southend,ED Adults & Communities,Cultural And Related Services,4225,Premier Inn,03/08/2023,12061160,485.96,City Jam - headline artists accommodation fees,Premier Travel Inns (3811)
Southend-on-Sea Borough Council,http://opendatacommunities.org/id/unitary-authority/southend,ED Adults & Communities,Cultural And Related Services,4225,Premier Inn,03/08/2023,12061160,519.96,City Jam - accommodation for headline artist,Premier Travel Inns (3811)
Southend-on-Sea Borough Council,http://opendatacommunities.org/id/unitary-authority/southend,ED Adults & Communities,Cultural And Related Services,4225,Premier Inn,03/08/2023,12061160,519.96,City Jam - accommodation for attending headline artists.,Premier Travel Inns (3811)
Southend-on-Sea Borough Council,http://opendatacommunities.org/id/unitary-authority/southend,ED Adults & Communities,Cultural And Related Services,4225,Premier Inn,03/08/2023,12061160,605.95,City Jam - accommodation fees for headline artists,Premier Travel Inns (3811)
Southend-on-Sea Borough Council,http://opendatacommunities.org/id/unitary-authority/southend,ED Children & Public Health,Children And Education Services,3290,Bp West Street Convenienc,03/08/2023,12061160,9.25,Purchased birthday cake for young person,Service Stations (5541)
Southend-on-Sea Borough Council,http://opendatacommunities.org/id/unitary-authority/southend,ED Adults & Communities,Cultural And Related Services,4225,Basildon Paint & Suppl,04/08/2023,12061160,998,City Jam - emulsion to prepare walls,Glass/Paint/Wallpaper Store (5231)
Southend-on-Sea Borough Council,http://opendatacommunities.org/id/unitary-authority/southend,"ED Strategy, Change & Governance",Central Services to the Public,2014,Sainsburys S/mkts,04/08/2023,12061160,218.5,Drinks for Mayor's Civic Garden party at Porters Civic House,Grocery Stores/Supermarkets (5411)
Southend-on-Sea Borough Council,http://opendatacommunities.org/id/unitary-authority/southend,ED Adults & Communities,Cultural And Related Services,7515,Asda Superstore,04/08/2023,12061160,4,Flowers for floristry order.There is no visible vat number on back but the number is GB 362 0127 92,Grocery Stores/Supermarkets (5411)
Southend-on-Sea Borough Council,http://opendatacommunities.org/id/unitary-authority/southend,ED Adults & Communities,Cultural And Related Services,4030,B & Q 1372,04/08/2023,12061160,53.57,Toolkit for Prittlewell Priory,Home Supply Warehouse Stores (5200)
Southend-on-Sea Borough Council,http://opendatacommunities.org/id/unitary-authority/southend,ED Children & Public Health,Children And Education Services,3030,Lidl Gb,04/08/2023,12061160,17.7,Resources for Family Centre sessions,Grocery Stores/Supermarkets (5411)
Southend-on-Sea Borough Council,http://opendatacommunities.org/id/unitary-authority/southend,ED Children & Public Health,Children And Education Services,3396,Starbucks Coffee,04/08/2023,12061160,5.25,Cold drink for KM. CIN visit.,Fast Food Restaurants (5814)
Southend-on-Sea Borough Council,http://opendatacommunities.org/id/unitary-authority/southend,ED Children & Public Health,Children And Education Services,3396,McDonalds,04/08/2023,12061160,2.49,Breakfast with ES- CIN visit.,Fast Food Restaurants (5814)
Southend-on-Sea Borough Council,http://opendatacommunities.org/id/unitary-authority/southend,ED Children & Public Health,Children And Education Services,3396,McDonalds,04/08/2023,12061160,5.4,Breakfast with ES- CIN visit.,Fast Food Restaurants (5814)
Southend-on-Sea Borough Council,http://opendatacommunities.org/id/unitary-authority/southend,ED Children & Public Health,Children And Education Services,3396,McDonalds,04/08/2023,12061160,2.49,Breakfast for TM- open as CIN.,Fast Food Restaurants (5814)
Southend-on-Sea Borough Council,http://opendatacommunities.org/id/unitary-authority/southend,ED Children & Public Health,Children And Education Services,3396,McDonalds,04/08/2023,12061160,6.59,Breakfast for TM- open as CIN.,Fast Food Restaurants (5814)
Southend-on-Sea Borough Council,http://opendatacommunities.org/id/unitary-authority/southend,ED Children & Public Health,Children And Education Services,3441,Favorite Chicken,04/08/2023,12061160,5.49,Refreshments for young person as a positive activity,Fast Food Restaurants (5814)
Southend-on-Sea Borough Council,http://opendatacommunities.org/id/unitary-authority/southend,ED Children & Public Health,Children And Education Services,3441,Favorite Chicken,04/08/2023,12061160,8.49,Refreshments for young person as a positive activity.,Fast Food Restaurants (5814)
Southend-on-Sea Borough Council,http://opendatacommunities.org/id/unitary-authority/southend,ED Children & Public Health,Children And Education Services,3436,Parsons Barn,04/08/2023,12061160,3,Coffee with client during interview,Eating Places/Restaurants (5812)
Southend-on-Sea Borough Council,http://opendatacommunities.org/id/unitary-authority/southend,ED Children & Public Health,Children And Education Services,3390,Amznmktplace,04/08/2023,12061160,11.99,File Trays for desk,Misc Speciality Retail (5999)
Southend-on-Sea Borough Council,http://opendatacommunities.org/id/unitary-authority/southend,ED Finance & Resources,Central Services to the Public,2070,Greaterangliacom,04/08/2023,12061160,68.05,REDACTED PERSONAL DATA return train travel - Stansted - Southend Victoria 7th & 10th Aug 2023.,Passenger Railways (4112)
Southend-on-Sea Borough Council,http://opendatacommunities.org/id/unitary-authority/southend,ED Adults & Communities,Cultural And Related Services,4120,Amznmktplace,04/08/2023,12061160,142.76,All weather paint for beach hut refurbishment,Misc Speciality Retail (5999)
Southend-on-Sea Borough Council,http://opendatacommunities.org/id/unitary-authority/southend,ED Children & Public Health,Children And Education Services,3396,McDonalds,04/08/2023,12061160,5.11,Food for IC,Fast Food Restaurants (5814)
Southend-on-Sea Borough Council,http://opendatacommunities.org/id/unitary-authority/southend,ED Adults & Communities,Cultural And Related Services,4256,Amznmktplace,04/08/2023,12061160,25.99,Equipment purchased following DSE assessment,Misc Speciality Retail (5999)
Southend-on-Sea Borough Council,http://opendatacommunities.org/id/unitary-authority/southend,ED Adults & Communities,Cultural And Related Services,4120,Amznmktplace,04/08/2023,12061160,23.66,For use on the pier,Misc Speciality Retail (5999)
Southend-on-Sea Borough Council,http://opendatacommunities.org/id/unitary-authority/southend,ED Adults & Communities,Cultural And Related Services,4011,Sainsburys S/mkts,05/08/2023,12061160,2.5,Bin Bags summer screenings,Grocery Stores/Supermarkets (5411)
Southend-on-Sea Borough Council,http://opendatacommunities.org/id/unitary-authority/southend,ED Adults & Communities,Cultural And Related Services,4055,Sainsburys S/mkts,05/08/2023,12061160,7.4,Milk and Coffee for the gallery,Grocery Stores/Supermarkets (5411)
Southend-on-Sea Borough Council,http://opendatacommunities.org/id/unitary-authority/southend,ED Children & Public Health,Children And Education Services,3030,Amznmktplace,05/08/2023,12061160,10.14,laminating pouches for friars family centre,Misc Speciality Retail (5999)
Southend-on-Sea Borough Council,http://opendatacommunities.org/id/unitary-authority/southend,ED Adults & Communities,Cultural And Related Services,4055,Post Office Counter,05/08/2023,12061160,2.25,Package sent to artist,Postage Stamps (9402)
Southend-on-Sea Borough Council,http://opendatacommunities.org/id/unitary-authority/southend,ED Finance & Resources,Central Services to the Public,1035,"Posit Software, Pbc",05/08/2023,12061160,242.73,SmartSouthend Shiny apps for 08/23,Computer Program/Sys Design (7372)
Southend-on-Sea Borough Council,http://opendatacommunities.org/id/unitary-authority/southend,ED Adults & Communities,Adult Social Care,1351,Paj-Gps,05/08/2023,12061160,4.99,monthly subscription for GPS tracker for ongoing Court of Protection case,Electronics Sales (5732)
Southend-on-Sea Borough Council,http://opendatacommunities.org/id/unitary-authority/southend,ED Adults & Communities,Cultural And Related Services,4225,Amznmktplace,06/08/2023,12061160,33.48,City Jam - beds for artists staying at Metal or Church Hostel,Misc Speciality Retail (5999)
Southend-on-Sea Borough Council,http://opendatacommunities.org/id/unitary-authority/southend,ED Adults & Communities,Cultural And Related Services,4225,Amznmktplace,06/08/2023,12061160,89.28,City Jam - blow up beds for artists staying at church hostel and or Metal HQ,Misc Speciality Retail (5999)
Southend-on-Sea Borough Council,http://opendatacommunities.org/id/unitary-authority/southend,ED Adults & Communities,Cultural And Related Services,4055,Amznmktplace,06/08/2023,12061160,17.64,USB Sticks for the gallery,Misc Speciality Retail (5999)
Southend-on-Sea Borough Council,http://opendatacommunities.org/id/unitary-authority/southend,ED Children & Public Health,Public Health,7713,Amznmktplace,06/08/2023,12061160,8.48,Equipment purchase for CYP&FPH,Misc Speciality Retail (5999)
Southend-on-Sea Borough Council,http://opendatacommunities.org/id/unitary-authority/southend,ED Children & Public Health,Public Health,7713,Amznmktplace,06/08/2023,12061160,12.91,Equipment purchase for CYP&FPH service,Misc Speciality Retail (5999)
Southend-on-Sea Borough Council,http://opendatacommunities.org/id/unitary-authority/southend,ED Finance & Resources,Central Services to the Public,2070,Edinburgh Airport,06/08/2023,12061160,49.49,REDACTED PERSONAL DATA parking Edinburgh Airport 14/08/23 - 17/08/23,"Parking Lots, Meters, Garages (7523)"
Southend-on-Sea Borough Council,http://opendatacommunities.org/id/unitary-authority/southend,ED Growth & Housing,Planning Services,5641,Facebk *ft368sp7c2,06/08/2023,12061160,20,Advertising digital marketing July 23,Advertising Services (7311)
Southend-on-Sea Borough Council,http://opendatacommunities.org/id/unitary-authority/southend,ED Adults & Communities,Adult Social Care,1351,Tesco Stores 3060,06/08/2023,12061160,35.8,Food shopping while awaiting court of protection.VAT receipt unable to be ascertained so items with *,Grocery Stores/Supermarkets (5411)
Southend-on-Sea Borough Council,http://opendatacommunities.org/id/unitary-authority/southend,ED Adults & Communities,Adult Social Care,1351,Tesco Stores 3060,06/08/2023,12061160,5.95,Food shopping while awaiting court of protection.VAT receipt unable to be ascertained so items with *,Grocery Stores/Supermarkets (5411)
Southend-on-Sea Borough Council,http://opendatacommunities.org/id/unitary-authority/southend,ED Adults & Communities,Cultural And Related Services,4015,Holiday Inn Express Al,06/08/2023,12061160,204.3,Payment receipt for accommodation for 2 curatorial team members attending maritime conference in Liv *,Holiday Inn (3501)
Southend-on-Sea Borough Council,http://opendatacommunities.org/id/unitary-authority/southend,ED Adults & Communities,Cultural And Related Services,4225,Steves Self Drive Hire,07/08/2023,12061160,158.04,City Jam build - van used to transport hoardings and equipment from Tickfield to build site,Automobile Rental Agency (7512)
Southend-on-Sea Borough Council,http://opendatacommunities.org/id/unitary-authority/southend,"ED Strategy, Change & Governance",Central Services to the Public,2045,Ability Smart,07/08/2023,12061160,882,Various FB campaigns,Computer Software Stores (5734)
Southend-on-Sea Borough Council,http://opendatacommunities.org/id/unitary-authority/southend,"ED Strategy, Change & Governance",Central Services to the Public,7096,Amznmktplace,07/08/2023,12061160,50.97,Ethernet cable adaptors purchased for Contact Centre staff working remote following VPN issues.,Misc Speciality Retail (5999)
Southend-on-Sea Borough Council,http://opendatacommunities.org/id/unitary-authority/southend,ED Children & Public Health,Children And Education Services,3105,Normans,07/08/2023,12061160,341.82,Musical instrument accessories.,Record Shops (5735)
Southend-on-Sea Borough Council,http://opendatacommunities.org/id/unitary-authority/southend,ED Children & Public Health,Children And Education Services,3396,Basildon Parking,07/08/2023,12061160,2,Parking for Basildon youth court.,"Parking Lots, Meters, Garages (7523)"
Southend-on-Sea Borough Council,http://opendatacommunities.org/id/unitary-authority/southend,ED Children & Public Health,Children And Education Services,3030,Asda Superstore,07/08/2023,12061160,4.14,snacks for antenatal classes,Grocery Stores/Supermarkets (5411)
Southend-on-Sea Borough Council,http://opendatacommunities.org/id/unitary-authority/southend,ED Children & Public Health,Children And Education Services,3436,Basildon Parking,07/08/2023,12061160,2,Parking Basildon Crown Court,"Parking Lots, Meters, Garages (7523)"
Southend-on-Sea Borough Council,http://opendatacommunities.org/id/unitary-authority/southend,ED Children & Public Health,Public Health,7677,Amznmktplace,07/08/2023,12061160,15.66,Equipment purchase for CYP&FPH,Misc Speciality Retail (5999)
Southend-on-Sea Borough Council,http://opendatacommunities.org/id/unitary-authority/southend,ED Children & Public Health,Children And Education Services,3471,Amz*amazon Business Uk,07/08/2023,12061160,-2.49,Credit Voucher Amz*amazon Business Uk from Amazon due to late delivery of Uno game for use in yoith *,Misc Speciality Retail (5999)
Southend-on-Sea Borough Council,http://opendatacommunities.org/id/unitary-authority/southend,ED Children & Public Health,Children And Education Services,3471,Asda Superstore,07/08/2023,12061160,68.02,Food shopping for lunches to be made at SYC cafe for children attending the HAF summer activities.,Grocery Stores/Supermarkets (5411)
Southend-on-Sea Borough Council,http://opendatacommunities.org/id/unitary-authority/southend,"ED Strategy, Change & Governance",Central Services to the Public,7096,Amznmktplace,08/08/2023,12061160,21.98,Ethernet cable adaptor purchased for remote worked following VPN issue.,Misc Speciality Retail (5999)
Southend-on-Sea Borough Council,http://opendatacommunities.org/id/unitary-authority/southend,ED Adults & Communities,Cultural And Related Services,7515,Sjaak Van Der Vijver B,08/08/2023,12061160,129.12,Flowers for floristry orders.,Florist Supplies/Nursery Stock (5193)
Southend-on-Sea Borough Council,http://opendatacommunities.org/id/unitary-authority/southend,ED Finance & Resources,Central Services to the Public,7110,Thomson Reuters UK Ltd,08/08/2023,12061160,187.2,QS Consultant contract purchase for project 1698,Professional Services - Def (8999)
Southend-on-Sea Borough Council,http://opendatacommunities.org/id/unitary-authority/southend,ED Children & Public Health,Children And Education Services,3396,McDonalds,08/08/2023,12061160,1.82,food for young person - KG,Fast Food Restaurants (5814)
Southend-on-Sea Borough Council,http://opendatacommunities.org/id/unitary-authority/southend,ED Children & Public Health,Children And Education Services,3396,McDonalds,08/08/2023,12061160,6.96,food for young person - KG,Fast Food Restaurants (5814)
Southend-on-Sea Borough Council,http://opendatacommunities.org/id/unitary-authority/southend,ED Children & Public Health,Children And Education Services,3030,Co-Op Group 180239,08/08/2023,12061160,7.57,Resources for Family Centre sessions,Grocery Stores/Supermarkets (5411)
Southend-on-Sea Borough Council,http://opendatacommunities.org/id/unitary-authority/southend,ED Children & Public Health,Children And Education Services,3396,Shell Rochester,08/08/2023,12061160,3.7,Out of area visit to see LW- looked after child.,Service Stations (5541)
Southend-on-Sea Borough Council,http://opendatacommunities.org/id/unitary-authority/southend,ED Children & Public Health,Children And Education Services,3396,Chessington Adventures,08/08/2023,12061160,37,Family activity for MB- Child protection.,Theatrical Producers (7922)
Southend-on-Sea Borough Council,http://opendatacommunities.org/id/unitary-authority/southend,ED Children & Public Health,Children And Education Services,3436,Shell Rochester,08/08/2023,12061160,2.85,Coffee on prison visit in Kent,Service Stations (5541)
Southend-on-Sea Borough Council,http://opendatacommunities.org/id/unitary-authority/southend,ED Adults & Communities,Cultural And Related Services,4120,Park Standard,08/08/2023,12061160,33.53,Fuel for Pier buggy.,Service Stations (5541)
Southend-on-Sea Borough Council,http://opendatacommunities.org/id/unitary-authority/southend,ED Adults & Communities,Cultural And Related Services,4120,Zettle_*dave Amber Pho,08/08/2023,12061160,158.11,REDACTED PERSONAL DATA Photography 2024 Southend calendars for sale in the Visitor Information Centre.,Misc Speciality Retail (5999)
Southend-on-Sea Borough Council,http://opendatacommunities.org/id/unitary-authority/southend,ED Children & Public Health,Children And Education Services,3692,Hm Passport Office,08/08/2023,12061160,53.5,Passport JP,Govt Serv - Default (9399)
Southend-on-Sea Borough Council,http://opendatacommunities.org/id/unitary-authority/southend,ED Children & Public Health,Children And Education Services,3692,Hm Passport Office,08/08/2023,12061160,53.5,Passport AF,Govt Serv - Default (9399)
Southend-on-Sea Borough Council,http://opendatacommunities.org/id/unitary-authority/southend,ED Adults & Communities,Cultural And Related Services,4055,Sapid Coffee,08/08/2023,12061160,7.9,Coffee with REDACTED PERSONAL DATA to discuss exhibition next year,Eating Places/Restaurants (5812)
Southend-on-Sea Borough Council,http://opendatacommunities.org/id/unitary-authority/southend,ED Adults & Communities,Cultural And Related Services,4055,P Chalkwell To,08/08/2023,12061160,31.6,Train Ticket - Studio Visit (Exhibition Research),Passenger Railways (4112)
Southend-on-Sea Borough Council,http://opendatacommunities.org/id/unitary-authority/southend,ED Adults & Communities,Cultural And Related Services,7111,The Electrical Counter,08/08/2023,12061160,103.31,Forum - 32W 4pin 3boxes,Electrical Parts/Equipment (5065)
Southend-on-Sea Borough Council,http://opendatacommunities.org/id/unitary-authority/southend,ED Adults & Communities,Cultural And Related Services,7510,Www.Screwfix.Com,08/08/2023,12061160,54,Waders for pond work,Lumber/Build. Supply Stores (5211)
Southend-on-Sea Borough Council,http://opendatacommunities.org/id/unitary-authority/southend,ED Children & Public Health,Children And Education Services,3390,Amznmktplace,09/08/2023,12061160,6.98,Reward stickers for children at Allan Cole,Misc Speciality Retail (5999)
Southend-on-Sea Borough Council,http://opendatacommunities.org/id/unitary-authority/southend,ED Children & Public Health,Children And Education Services,3390,Amznmktplace,09/08/2023,12061160,8.97,Reward stickers for children at Allan Cole,Misc Speciality Retail (5999)
Southend-on-Sea Borough Council,http://opendatacommunities.org/id/unitary-authority/southend,ED Adults & Communities,Cultural And Related Services,4225,Wilko Retail Limited,09/08/2023,12061160,18,Toaster for Southend Pier kitchen,Misc Gen Merchandise - Def (5399)
Southend-on-Sea Borough Council,http://opendatacommunities.org/id/unitary-authority/southend,ED Adults & Communities,Cultural And Related Services,4225,Amznmktplace,09/08/2023,12061160,58.17,City Jam - Plastic artist and staff id holders for lanyards.,Misc Speciality Retail (5999)
Southend-on-Sea Borough Council,http://opendatacommunities.org/id/unitary-authority/southend,ED Adults & Communities,Cultural And Related Services,4200,Lidl Gb Southend,09/08/2023,12061160,7.39,Food and drink for volunteer group,Grocery Stores/Supermarkets (5411)
Southend-on-Sea Borough Council,http://opendatacommunities.org/id/unitary-authority/southend,ED Adults & Communities,Cultural And Related Services,4256,Amznmktplace,09/08/2023,12061160,85,New tea urn to be used by Bookstart/CDO's for events - kept at The Forum,Misc Speciality Retail (5999)
Southend-on-Sea Borough Council,http://opendatacommunities.org/id/unitary-authority/southend,ED Children & Public Health,Children And Education Services,3480,In Car Safety Centre,09/08/2023,12061160,818,Specialist safety car seat purchased for Child Looked After with significant disabilities.,Automotive Parts Stores (5533)
Southend-on-Sea Borough Council,http://opendatacommunities.org/id/unitary-authority/southend,ED Adults & Communities,Cultural And Related Services,4045,The Range,09/08/2023,12061160,1,Chalk for marking entries to Essex Open Exhibition at Beecroft Art Gallery,Misc Home Furnishing (5719)
Southend-on-Sea Borough Council,http://opendatacommunities.org/id/unitary-authority/southend,ED Adults & Communities,Cultural And Related Services,4030,Aldi Stores Ltd,09/08/2023,12061160,6.45,Emergency supply bin liners for Priory visitor centre,Grocery Stores/Supermarkets (5411)
Southend-on-Sea Borough Council,http://opendatacommunities.org/id/unitary-authority/southend,ED Adults & Communities,Cultural And Related Services,4256,One For Fun Limited,09/08/2023,12061160,266.5,Retail merchandise to be sold in libraries,Hobby/Toy/Game Stores (5945)
Southend-on-Sea Borough Council,http://opendatacommunities.org/id/unitary-authority/southend,ED Children & Public Health,Children And Education Services,3492,Tower Hamlets Bc,09/08/2023,12061160,11,Birth certificate REDACTED PERSONAL DATA,Govt Serv - Default (9399)
Southend-on-Sea Borough Council,http://opendatacommunities.org/id/unitary-authority/southend,ED Children & Public Health,Children And Education Services,3492,Hm Passport Office,09/08/2023,12061160,53.5,Passport BT,Govt Serv - Default (9399)
Southend-on-Sea Borough Council,http://opendatacommunities.org/id/unitary-authority/southend,"ED Strategy, Change & Governance",Environmental And Regulatory Services,4506,P Tuckwell Ltd,09/08/2023,12061160,68.1,replacement parts for a lawn mower,Architectural/Eng/Survey (8911)
Southend-on-Sea Borough Council,http://opendatacommunities.org/id/unitary-authority/southend,ED Children & Public Health,Children And Education Services,3390,Amznmktplace,09/08/2023,12061160,4.99,Reward stickers for children at Allan Cole,Misc Speciality Retail (5999)
Southend-on-Sea Borough Council,http://opendatacommunities.org/id/unitary-authority/southend,ED Adults & Communities,Cultural And Related Services,4030,Sumup *colin Rumble,09/08/2023,12061160,298.5,Honey for sale in museum shops,Member Organizations - Def (8699)
Southend-on-Sea Borough Council,http://opendatacommunities.org/id/unitary-authority/southend,ED Finance & Resources,Housing Services,6170,Wilko Retail Limited,09/08/2023,12061160,1.5,Key fobs to assist management of secure resources.,Misc Gen Merchandise - Def (5399)
Southend-on-Sea Borough Council,http://opendatacommunities.org/id/unitary-authority/southend,"ED Strategy, Change & Governance",Central Services to the Public,7145,Formara Ltd,10/08/2023,12061160,67.2,Certificate printing for the Mayors office,Misc Publishing & Printing (2741)
Southend-on-Sea Borough Council,http://opendatacommunities.org/id/unitary-authority/southend,ED Adults & Communities,Cultural And Related Services,4280,Amznmktplace,10/08/2023,12061160,18.99,Toilet rolls for use by staff and customers at Westcliff Library,Misc Speciality Retail (5999)
Southend-on-Sea Borough Council,http://opendatacommunities.org/id/unitary-authority/southend,ED Adults & Communities,Cultural And Related Services,4290,Amznmktplace,10/08/2023,12061160,26.99,Lumbar support for staff office chair at Leigh Library,Misc Speciality Retail (5999)
Southend-on-Sea Borough Council,http://opendatacommunities.org/id/unitary-authority/southend,ED Adults & Communities,Cultural And Related Services,4030,Eb *refund To Buyer,10/08/2023,12061160,12.31,Eventbrite refund for Anglo Saxon event at Prittlewell Priory,Business Services - Default (7399)
Southend-on-Sea Borough Council,http://opendatacommunities.org/id/unitary-authority/southend,ED Children & Public Health,Children And Education Services,3441,Cookies And Cones,10/08/2023,12061160,12.4,Refreshments for people as a positive activity.,Bakeries (5462)
Southend-on-Sea Borough Council,http://opendatacommunities.org/id/unitary-authority/southend,ED Adults & Communities,Cultural And Related Services,4256,Booker Ltd - 38577234,10/08/2023,12061160,71.81,Drinks to be sold in the libraries,Grocery Stores/Supermarkets (5411)
Southend-on-Sea Borough Council,http://opendatacommunities.org/id/unitary-authority/southend,ED Children & Public Health,Children And Education Services,3396,Subway 66233 Toomey Rochf,10/08/2023,12061160,7.09,Food purchased for young person open to Early Help AIPT,Fast Food Restaurants (5814)
Southend-on-Sea Borough Council,http://opendatacommunities.org/id/unitary-authority/southend,ED Children & Public Health,Children And Education Services,3396,Kfc Greyhound Southend,10/08/2023,12061160,8.99,Food purchased for young person open to social care - SH,Fast Food Restaurants (5814)
Southend-on-Sea Borough Council,http://opendatacommunities.org/id/unitary-authority/southend,ED Children & Public Health,Children And Education Services,3396,McDonalds,10/08/2023,12061160,6.59,Food for Young Person open to social care - TM,Fast Food Restaurants (5814)
Southend-on-Sea Borough Council,http://opendatacommunities.org/id/unitary-authority/southend,ED Children & Public Health,Children And Education Services,3396,McDonalds,10/08/2023,12061160,2.49,Food for Young Person open to social care - TM,Fast Food Restaurants (5814)
Southend-on-Sea Borough Council,http://opendatacommunities.org/id/unitary-authority/southend,ED Children & Public Health,Children And Education Services,3692,Essex County Counci Ec,10/08/2023,12061160,11,Birth Certificate LGP,Govt Serv - Default (9399)
Southend-on-Sea Borough Council,http://opendatacommunities.org/id/unitary-authority/southend,ED Children & Public Health,Children And Education Services,3030,Amznmktplace,10/08/2023,12061160,12.34,laminating pouches for centres,Misc Speciality Retail (5999)
Southend-on-Sea Borough Council,http://opendatacommunities.org/id/unitary-authority/southend,ED Adults & Communities,Cultural And Related Services,4055,Mailchimp,10/08/2023,12061160,90.46,August mailchimp subscription,Digital Goods - Large Digital Goods Merchant (5818)
Southend-on-Sea Borough Council,http://opendatacommunities.org/id/unitary-authority/southend,ED Adults & Communities,Central Services to the Public,7540,Leigh Lock And Safe Co Lt,10/08/2023,12061160,31.7,This purchase is to supply keys & padlocks for use on the Parks department,Business Services - Default (7399)
Southend-on-Sea Borough Council,http://opendatacommunities.org/id/unitary-authority/southend,ED Adults & Communities,Cultural And Related Services,4120,Www.Ernestdoe.Com/,10/08/2023,12061160,257.7,For use on the pier,Lawn/Garden Supply/Nursery (5261)
Southend-on-Sea Borough Council,http://opendatacommunities.org/id/unitary-authority/southend,ED Adults & Communities,Cultural And Related Services,4025,Power Hygne & Saf,10/08/2023,12061160,48.11,Cleaning supplies for the museums.,Specialty Cleaning/Polishing (2842)
Southend-on-Sea Borough Council,http://opendatacommunities.org/id/unitary-authority/southend,ED Adults & Communities,Cultural And Related Services,4270,Amznmktplace,11/08/2023,12061160,18.99,Toilet rolls for use by staff and customers at Southchurch Library,Misc Speciality Retail (5999)
Southend-on-Sea Borough Council,http://opendatacommunities.org/id/unitary-authority/southend,ED Adults & Communities,Cultural And Related Services,4263,Amznmktplace,11/08/2023,12061160,18.99,Toilet rolls for use by staff and customers at Shoeburyness Library,Misc Speciality Retail (5999)
Southend-on-Sea Borough Council,http://opendatacommunities.org/id/unitary-authority/southend,ED Children & Public Health,Children And Education Services,3436,Unilink Software Ltd,11/08/2023,12061160,5,credit to email a prisoner account to be able to email young people in Cookham Wood,Computer Software Stores (5734)
Southend-on-Sea Borough Council,http://opendatacommunities.org/id/unitary-authority/southend,ED Children & Public Health,Children And Education Services,3030,Asda Superstore,11/08/2023,12061160,1.78,Resources for Family Centre sessions,Grocery Stores/Supermarkets (5411)
Southend-on-Sea Borough Council,http://opendatacommunities.org/id/unitary-authority/southend,ED Children & Public Health,Children And Education Services,3441,Favorite Chicken,11/08/2023,12061160,6.49,Refreshments for young person as a positive activity,Fast Food Restaurants (5814)
Southend-on-Sea Borough Council,http://opendatacommunities.org/id/unitary-authority/southend,ED Children & Public Health,Children And Education Services,3030,Currys Online,11/08/2023,12061160,199,new fridge for friars family centre included removing old broken one.,Electronics Sales (5732)
Southend-on-Sea Borough Council,http://opendatacommunities.org/id/unitary-authority/southend,ED Adults & Communities,Cultural And Related Services,4055,Arriva Kent Thameside Lim,11/08/2023,12061160,2,Bus Ticket - site visit to Lynton Road,Bus Lines/Charter/Tour (4131)
Southend-on-Sea Borough Council,http://opendatacommunities.org/id/unitary-authority/southend,ED Finance & Resources,Central Services to the Public,2070,Edinburgh Airport,11/08/2023,12061160,49.49,REDACTED PERSONAL DATA parking Edinburgh Airport 21/08/23 - 24/08/23,"Parking Lots, Meters, Garages (7523)"
Southend-on-Sea Borough Council,http://opendatacommunities.org/id/unitary-authority/southend,ED Finance & Resources,Central Services to the Public,2070,Premier Inn,11/08/2023,12061160,419.47,REDACTED PERSONAL DATA accommodation 21/08/23 - 24/-8/23 - Premier Inn Southend on Sea,Premier Travel Inns (3811)
Southend-on-Sea Borough Council,http://opendatacommunities.org/id/unitary-authority/southend,ED Growth & Housing,Planning Services,5641,Formara Ltd,11/08/2023,12061160,47,Flyers,Misc Publishing & Printing (2741)
Southend-on-Sea Borough Council,http://opendatacommunities.org/id/unitary-authority/southend,ED Growth & Housing,Planning Services,5641,Formara Ltd,11/08/2023,12061160,81.6,Promotional material,Misc Publishing & Printing (2741)
Southend-on-Sea Borough Council,http://opendatacommunities.org/id/unitary-authority/southend,ED Children & Public Health,Public Health,7665,Formara Ltd,11/08/2023,12061160,86.4,Printing for the Stop Smoking Service,Misc Publishing & Printing (2741)
Southend-on-Sea Borough Council,http://opendatacommunities.org/id/unitary-authority/southend,ED Adults & Communities,Cultural And Related Services,4261,Amznmktplace,11/08/2023,12061160,13.23,Book requested by customer not available form normal suppliers,Misc Speciality Retail (5999)
Southend-on-Sea Borough Council,http://opendatacommunities.org/id/unitary-authority/southend,ED Children & Public Health,Children And Education Services,3030,Tesco Stores 3177,11/08/2023,12061160,7.76,snack for family centres,Grocery Stores/Supermarkets (5411)
Southend-on-Sea Borough Council,http://opendatacommunities.org/id/unitary-authority/southend,"ED Strategy, Change & Governance",Central Services to the Public,2045,Facebk Rcglatphj2,12/08/2023,12061160,23.42,Various FB campaigns - Biz on Sea,Advertising Services (7311)
Southend-on-Sea Borough Council,http://opendatacommunities.org/id/unitary-authority/southend,ED Adults & Communities,Cultural And Related Services,4030,Amznmktplace,12/08/2023,12061160,11.97,Visitor counters for Priory museum,Misc Speciality Retail (5999)
Southend-on-Sea Borough Council,http://opendatacommunities.org/id/unitary-authority/southend,ED Adults & Communities,Cultural And Related Services,4120,Amznmktplace,13/08/2023,12061160,35.63,Safety boots as part of uniform.,Misc Speciality Retail (5999)
Southend-on-Sea Borough Council,http://opendatacommunities.org/id/unitary-authority/southend,ED Adults & Communities,Adult Social Care,1209,Amznbusiness,13/08/2023,12061160,58.99,"Kenco Smooth Instant Coffee Refill 150g (Pack of 6, Total 900g) x 2 For UNIT 8, The Forum",Misc Speciality Retail (5999)
Southend-on-Sea Borough Council,http://opendatacommunities.org/id/unitary-authority/southend,ED Finance & Resources,Central Services to the Public,2070,Greater Anglia Rail,13/08/2023,12061160,68.05,REDACTED PERSONAL DATA return train travel Southend Victoria/ Stansted Airport 14/08/23 - 17/08/23,Passenger Railways (4112)
Southend-on-Sea Borough Council,http://opendatacommunities.org/id/unitary-authority/southend,"ED Strategy, Change & Governance",Central Services to the Public,7145,Sp Rbl Poppy Appeal,14/08/2023,12061160,102.5,Poppy Wreaths for Remembrance Sunday services across the City,Charitable/Soc Service Orgs (8398)
Southend-on-Sea Borough Council,http://opendatacommunities.org/id/unitary-authority/southend,ED Adults & Communities,Cultural And Related Services,4015,Premier Inn,14/08/2023,12061160,186.47,Accommodation in Newcastle for the Museum Association Conference.,Premier Travel Inns (3811)
Southend-on-Sea Borough Council,http://opendatacommunities.org/id/unitary-authority/southend,ED Adults & Communities,Cultural And Related Services,4015,Premier Inn,14/08/2023,12061160,279.47,Accommodation in Belfast for the DATS conference - I am chairing some panels at the conference and a *,Premier Travel Inns (3811)
Southend-on-Sea Borough Council,http://opendatacommunities.org/id/unitary-authority/southend,ED Children & Public Health,Children And Education Services,3265,Facebk Wudgeuxtk2,14/08/2023,12061160,243.16,Targeted Facebook and Instagram advertising to raise awareness and drive prospective foster carer en *,Advertising Services (7311)
Southend-on-Sea Borough Council,http://opendatacommunities.org/id/unitary-authority/southend,ED Children & Public Health,Children And Education Services,3030,Co-Op Group 070686,14/08/2023,12061160,8.22,Resources for Family Centre sessions,Grocery Stores/Supermarkets (5411)
Southend-on-Sea Borough Council,http://opendatacommunities.org/id/unitary-authority/southend,ED Children & Public Health,Children And Education Services,3030,B&m 341 - Southend,14/08/2023,12061160,9.69,Resources for Family Centre sessions,Misc Gen Merchandise - Def (5399)
Southend-on-Sea Borough Council,http://opendatacommunities.org/id/unitary-authority/southend,ED Children & Public Health,Children And Education Services,3030,Ppoint_*uneque Convenient,14/08/2023,12061160,1.65,Milk for antenatal classes,Misc Food Stores - Default (5499)
Southend-on-Sea Borough Council,http://opendatacommunities.org/id/unitary-authority/southend,ED Children & Public Health,Children And Education Services,3396,Team Sport Karting,14/08/2023,12061160,79.92,Go Karting activity paid for two young people open to social careTM and SW,Member Clubs/Sport/Rec/Golf (7997)
Southend-on-Sea Borough Council,http://opendatacommunities.org/id/unitary-authority/southend,ED Adults & Communities,Cultural And Related Services,4055,Gls Educational Su,14/08/2023,12061160,11.93,Cardboard for Puppet Workshop for contemporary elders programme.,Colleges/Univ/Jc/Profession (8220)
Southend-on-Sea Borough Council,http://opendatacommunities.org/id/unitary-authority/southend,ED Children & Public Health,Children And Education Services,3471,Lidl Gb,14/08/2023,12061160,2.76,food for summer programme at syc,Grocery Stores/Supermarkets (5411)
Southend-on-Sea Borough Council,http://opendatacommunities.org/id/unitary-authority/southend,ED Children & Public Health,Children And Education Services,3471,Asda Superstore,14/08/2023,12061160,16.65,food for summer programme at syc,Grocery Stores/Supermarkets (5411)
Southend-on-Sea Borough Council,http://opendatacommunities.org/id/unitary-authority/southend,ED Children & Public Health,Children And Education Services,3471,Lidl Gb,14/08/2023,12061160,23.53,food for summer youth programme at syc,Grocery Stores/Supermarkets (5411)
Southend-on-Sea Borough Council,http://opendatacommunities.org/id/unitary-authority/southend,ED Children & Public Health,Children And Education Services,3471,Lidl Gb,14/08/2023,12061160,0.99,food for summer youth programme at syc,Grocery Stores/Supermarkets (5411)
Southend-on-Sea Borough Council,http://opendatacommunities.org/id/unitary-authority/southend,ED Children & Public Health,Children And Education Services,3390,Amznmktplace,14/08/2023,12061160,20.89,AA batteries for the toys at Allan Cole,Misc Speciality Retail (5999)
Southend-on-Sea Borough Council,http://opendatacommunities.org/id/unitary-authority/southend,ED Children & Public Health,Children And Education Services,3390,Amznmktplace,14/08/2023,12061160,22.47,AAA batteries for the toys at Allan Cole,Misc Speciality Retail (5999)
Southend-on-Sea Borough Council,http://opendatacommunities.org/id/unitary-authority/southend,"ED Strategy, Change & Governance",Central Services to the Public,2190,Studio 2000 Photog,14/08/2023,12061160,232.56,photos for citizenship ceremony,Camera & Photo Supply Store (5946)
Southend-on-Sea Borough Council,http://opendatacommunities.org/id/unitary-authority/southend,ED Children & Public Health,Children And Education Services,3290,Canterbury City Counci,14/08/2023,12061160,2.5,Former relevant visit,"Parking Lots, Meters, Garages (7523)"
Southend-on-Sea Borough Council,http://opendatacommunities.org/id/unitary-authority/southend,ED Children & Public Health,Children And Education Services,3396,Www.Kingpinsbowl.Co.Uk,14/08/2023,12061160,43,"Bowling with AC, her friend and 2 practitioners - positive activity in the summer",Amusement/Rec Serv - Def (7999)
Southend-on-Sea Borough Council,http://opendatacommunities.org/id/unitary-authority/southend,ED Adults & Communities,Cultural And Related Services,4245,Amznmktplace,14/08/2023,12061160,41.16,Paper bags for use at Visitor Information.,Misc Speciality Retail (5999)
Southend-on-Sea Borough Council,http://opendatacommunities.org/id/unitary-authority/southend,ED Adults & Communities,Cultural And Related Services,4225,Poundland Ltd - 1138,15/08/2023,12061160,13,City Jam - cold drink packs for build and prep volunteers.,Discount Stores (5310)
Southend-on-Sea Borough Council,http://opendatacommunities.org/id/unitary-authority/southend,ED Adults & Communities,Cultural And Related Services,4225,Iceland,15/08/2023,12061160,14,City Jam - Volunteer supplies,Grocery Stores/Supermarkets (5411)
Southend-on-Sea Borough Council,http://opendatacommunities.org/id/unitary-authority/southend,ED Adults & Communities,Cultural And Related Services,4225,Www.Argos.Co.Uk,15/08/2023,12061160,335.95,City Jam - benches for food village zone,Department Stores (5311)
Southend-on-Sea Borough Council,http://opendatacommunities.org/id/unitary-authority/southend,ED Children & Public Health,Children And Education Services,3396,Aldi 57 776,15/08/2023,12061160,63.24,Aldi shop for SG family- CIN.,Grocery Stores/Supermarkets (5411)
Southend-on-Sea Borough Council,http://opendatacommunities.org/id/unitary-authority/southend,ED Children & Public Health,Children And Education Services,3396,Aldi 57 776,15/08/2023,12061160,10.33,Aldi shop for SG family- CIN.,Grocery Stores/Supermarkets (5411)
Southend-on-Sea Borough Council,http://opendatacommunities.org/id/unitary-authority/southend,ED Children & Public Health,Children And Education Services,3396,Kfc Greyhound Southend,15/08/2023,12061160,8.99,food bought for JI who lives in supported accommodation.,Fast Food Restaurants (5814)
Southend-on-Sea Borough Council,http://opendatacommunities.org/id/unitary-authority/southend,ED Children & Public Health,Children And Education Services,3396,Kfc Progress Road,15/08/2023,12061160,9.49,Young person open to AIPT lunch - FCK,Fast Food Restaurants (5814)
Southend-on-Sea Borough Council,http://opendatacommunities.org/id/unitary-authority/southend,ED Children & Public Health,Children And Education Services,3396,McDonalds,15/08/2023,12061160,16.8,2 Young People open to AIPT social care TM and SW Lunch on trip out,Fast Food Restaurants (5814)
Southend-on-Sea Borough Council,http://opendatacommunities.org/id/unitary-authority/southend,ED Adults & Communities,Cultural And Related Services,4015,Www.Rossiicecream.Com,15/08/2023,12061160,72.1,Shop stock for Prittlewell Priory Visitors Centre.,Grocery Stores/Supermarkets (5411)
Southend-on-Sea Borough Council,http://opendatacommunities.org/id/unitary-authority/southend,"ED Strategy, Change & Governance",Environmental And Regulatory Services,4505,Paypal,15/08/2023,12061160,684,ICCM learning conference,Schools - Default (8299)
Southend-on-Sea Borough Council,http://opendatacommunities.org/id/unitary-authority/southend,ED Children & Public Health,Children And Education Services,3030,Tesco Stores 3177,15/08/2023,12061160,16.48,Snack for FS group & SEND session,Grocery Stores/Supermarkets (5411)
Southend-on-Sea Borough Council,http://opendatacommunities.org/id/unitary-authority/southend,ED Children & Public Health,Children And Education Services,3396,Starbucks Coffee,15/08/2023,12061160,5.25,Drink for KBP during positive activity,Fast Food Restaurants (5814)
Southend-on-Sea Borough Council,http://opendatacommunities.org/id/unitary-authority/southend,ED Growth & Housing,Planning Services,5641,Utn Training,15/08/2023,12061160,450,"Training for 2 x clients for NRSWA Monitoring Signing, Lighting and Guarding REDACTED PERSONAL DATA",Masonry/Tile/Plaster/Insul (1740)
Southend-on-Sea Borough Council,http://opendatacommunities.org/id/unitary-authority/southend,ED Adults & Communities,Cultural And Related Services,4261,Amznmktplace,15/08/2023,12061160,10.99,Book purchased for customer request and not available from normal supplier,Misc Speciality Retail (5999)
Southend-on-Sea Borough Council,http://opendatacommunities.org/id/unitary-authority/southend,ED Children & Public Health,Children And Education Services,3396,Team Sport Karting,15/08/2023,12061160,39.96,positive activity for young person.,Member Clubs/Sport/Rec/Golf (7997)
Southend-on-Sea Borough Council,http://opendatacommunities.org/id/unitary-authority/southend,ED Children & Public Health,Children And Education Services,3471,Sumup *r G Banquets,15/08/2023,12061160,135,Hot meal delivery for HAF session at Cluny Hub where there is no kitchen available for hot food. Pai *,Misc Food Stores - Default (5499)
Southend-on-Sea Borough Council,http://opendatacommunities.org/id/unitary-authority/southend,ED Adults & Communities,Cultural And Related Services,4245,Amznmktplace,15/08/2023,12061160,29.45,Radar keys for sale at Visitor Information,Misc Speciality Retail (5999)
Southend-on-Sea Borough Council,http://opendatacommunities.org/id/unitary-authority/southend,ED Adults & Communities,Cultural And Related Services,4120,Www.Argos.Co.Uk,15/08/2023,12061160,440,Materials for City Jam code 4230,Department Stores (5311)
Southend-on-Sea Borough Council,http://opendatacommunities.org/id/unitary-authority/southend,ED Children & Public Health,Children And Education Services,3030,Sainsburys Superma,15/08/2023,12061160,3.7,snack for family centres,Grocery Stores/Supermarkets (5411)
Southend-on-Sea Borough Council,http://opendatacommunities.org/id/unitary-authority/southend,ED Adults & Communities,Cultural And Related Services,4256,Sq *public Policy Exchang,16/08/2023,12061160,118.8,Attended a course on enhancement for Digital resources on behalf of Libraries.,Professional Services - Def (8999)
Southend-on-Sea Borough Council,http://opendatacommunities.org/id/unitary-authority/southend,ED Children & Public Health,Children And Education Services,3030,Asda Superstore,16/08/2023,12061160,5.72,Resources for Family Centre sessions,Grocery Stores/Supermarkets (5411)
Southend-on-Sea Borough Council,http://opendatacommunities.org/id/unitary-authority/southend,ED Children & Public Health,Children And Education Services,3396,Starbucks Coffee,16/08/2023,12061160,13.08,Cold drinks for MB and KB- CP visits.,Fast Food Restaurants (5814)
Southend-on-Sea Borough Council,http://opendatacommunities.org/id/unitary-authority/southend,ED Children & Public Health,Children And Education Services,3030,Asda Superstore,16/08/2023,12061160,1.25,snacks for antenatal classes,Grocery Stores/Supermarkets (5411)
Southend-on-Sea Borough Council,http://opendatacommunities.org/id/unitary-authority/southend,ED Children & Public Health,Children And Education Services,3030,Asda Superstore,16/08/2023,12061160,8.65,snacks for antenatal classes,Grocery Stores/Supermarkets (5411)
Southend-on-Sea Borough Council,http://opendatacommunities.org/id/unitary-authority/southend,ED Children & Public Health,Children And Education Services,3396,McDonalds 859,16/08/2023,12061160,4.89,breakfast bought for SW after attending hospital.,Fast Food Restaurants (5814)
Southend-on-Sea Borough Council,http://opendatacommunities.org/id/unitary-authority/southend,ED Children & Public Health,Children And Education Services,3396,Liquid Flair,16/08/2023,12061160,5.65,drink with EO as part of postive activity.,Misc Speciality Retail (5999)
Southend-on-Sea Borough Council,http://opendatacommunities.org/id/unitary-authority/southend,ED Adults & Communities,Adult Social Care,1350,Www.Argos.Co.Uk,16/08/2023,12061160,35,Essential item purchased for person to promote independence and ensure well being.,Department Stores (5311)
Southend-on-Sea Borough Council,http://opendatacommunities.org/id/unitary-authority/southend,ED Adults & Communities,Adult Social Care,1231,Greater Anglie,16/08/2023,12061160,24.1,Social worker train ticket to MH ward for discharge planning meeting,Passenger Railways (4112)
Southend-on-Sea Borough Council,http://opendatacommunities.org/id/unitary-authority/southend,ED Children & Public Health,Children And Education Services,3396,Teamsport Basildon,16/08/2023,12061160,7.58,Activity for young person TM open to AIPT Social Care,Member Clubs/Sport/Rec/Golf (7997)
Southend-on-Sea Borough Council,http://opendatacommunities.org/id/unitary-authority/southend,ED Adults & Communities,Cultural And Related Services,4055,Gls Educational Su,16/08/2023,12061160,98.96,City Jam Creative Open Day materials,Colleges/Univ/Jc/Profession (8220)
Southend-on-Sea Borough Council,http://opendatacommunities.org/id/unitary-authority/southend,ED Adults & Communities,Adult Social Care,1180,Health And Care Professio,16/08/2023,12061160,196.24,Professional Registration - Agreed by REDACTED PERSONAL DATA,Govt Serv - Default (9399)
Southend-on-Sea Borough Council,http://opendatacommunities.org/id/unitary-authority/southend,ED Children & Public Health,Children And Education Services,3183,Twinkl Educational Pub,16/08/2023,12061160,374.06,Twinkl Yearly Subscription for SEND Early Years resources.,Books/Periodicals/Newspapers (5192)
Southend-on-Sea Borough Council,http://opendatacommunities.org/id/unitary-authority/southend,ED Children & Public Health,Children And Education Services,3183,Twinkl Educational Pub,16/08/2023,12061160,371.09,Twinkl Yearly Subscription for SEND Early Years resources.,Books/Periodicals/Newspapers (5192)
Southend-on-Sea Borough Council,http://opendatacommunities.org/id/unitary-authority/southend,ED Adults & Communities,Cultural And Related Services,7111,Avery.Co.Uk,16/08/2023,12061160,12.88,Public Toilets - Weatherproof white film (Laser) rectangle 38x21mm blank labels,Misc Speciality Retail (5999)
Southend-on-Sea Borough Council,http://opendatacommunities.org/id/unitary-authority/southend,ED Adults & Communities,Central Services to the Public,2041,Royals Southend Car Pa,16/08/2023,12061160,3.5,Parking to attend support session for Afghan families at Park inn hotel,"Parking Lots, Meters, Garages (7523)"
Southend-on-Sea Borough Council,http://opendatacommunities.org/id/unitary-authority/southend,,,-,Asda Groceries Online,16/08/2023,12061160,-1,Credit Voucher Asda Groceries Online,Grocery Stores/Supermarkets (5411)
Southend-on-Sea Borough Council,http://opendatacommunities.org/id/unitary-authority/southend,ED Adults & Communities,Cultural And Related Services,4261,Amznmktplace,16/08/2023,12061160,5.65,Book purchased for customer request and not available from normal supplier,Misc Speciality Retail (5999)
Southend-on-Sea Borough Council,http://opendatacommunities.org/id/unitary-authority/southend,ED Children & Public Health,Children And Education Services,3396,Teamsport Basildon,16/08/2023,12061160,6,Drink for joint collaborative visit for two young people,Member Clubs/Sport/Rec/Golf (7997)
Southend-on-Sea Borough Council,http://opendatacommunities.org/id/unitary-authority/southend,ED Children & Public Health,Children And Education Services,3396,McDonalds,16/08/2023,12061160,10.25,Lunch for joint collaborative visit with two young people.,Fast Food Restaurants (5814)
Southend-on-Sea Borough Council,http://opendatacommunities.org/id/unitary-authority/southend,ED Adults & Communities,Cultural And Related Services,4225,Paypal,16/08/2023,12061160,282.75,City Jam - Extra paint colours unavailable via Montana Paints,Artist/Craft Shops (5970)
Southend-on-Sea Borough Council,http://opendatacommunities.org/id/unitary-authority/southend,ED Adults & Communities,Cultural And Related Services,4225,Airbnb * Hmjx2xh5ea,17/08/2023,12061160,364.5,City Jam - Montana Paints/Headline sponsor - accommodation during festival,Travel Agencies (4722)
Southend-on-Sea Borough Council,http://opendatacommunities.org/id/unitary-authority/southend,"ED Strategy, Change & Governance",Central Services to the Public,2005,Sumup *exclusive Shoe Re,17/08/2023,12061160,35.9,Dry Cleaning & Alteration of Chief Executives Robes,Misc Speciality Retail (5999)
Southend-on-Sea Borough Council,http://opendatacommunities.org/id/unitary-authority/southend,ED Adults & Communities,Cultural And Related Services,4200,Lidl Gb Southend,17/08/2023,12061160,17.6,Food and drink and cleaning supplies for volunteer group,Grocery Stores/Supermarkets (5411)
Southend-on-Sea Borough Council,http://opendatacommunities.org/id/unitary-authority/southend,ED Adults & Communities,Cultural And Related Services,4200,Lidl Gb Southend,17/08/2023,12061160,3.49,Food and drink and cleaning supplies for volunteer group,Grocery Stores/Supermarkets (5411)
Southend-on-Sea Borough Council,http://opendatacommunities.org/id/unitary-authority/southend,ED Adults & Communities,Cultural And Related Services,7510,Screwfix Dir Ltd,17/08/2023,12061160,34.99,Safety boots purchased for a member of staff.,Lumber/Build. Supply Stores (5211)
Southend-on-Sea Borough Council,http://opendatacommunities.org/id/unitary-authority/southend,ED Adults & Communities,Cultural And Related Services,4030,Booker Ltd - 38622734,17/08/2023,12061160,88.12,Cold drinks supplies for Priory visitor centre shop,Grocery Stores/Supermarkets (5411)
Southend-on-Sea Borough Council,http://opendatacommunities.org/id/unitary-authority/southend,ED Children & Public Health,Children And Education Services,3396,McDonalds 859,17/08/2023,12061160,5.98,Lunch for CH- looked after child.,Fast Food Restaurants (5814)
Southend-on-Sea Borough Council,http://opendatacommunities.org/id/unitary-authority/southend,ED Children & Public Health,Children And Education Services,3396,McDonalds 859,17/08/2023,12061160,7.28,Lunch for CH- looked after child.,Fast Food Restaurants (5814)
Southend-on-Sea Borough Council,http://opendatacommunities.org/id/unitary-authority/southend,ED Children & Public Health,Children And Education Services,3396,McDonalds,17/08/2023,12061160,8.9,food bought for AH as part of postive activity,Fast Food Restaurants (5814)
Southend-on-Sea Borough Council,http://opendatacommunities.org/id/unitary-authority/southend,ED Children & Public Health,Children And Education Services,3441,McDonalds,17/08/2023,12061160,7.69,Refreshments for young persons.,Fast Food Restaurants (5814)
Southend-on-Sea Borough Council,http://opendatacommunities.org/id/unitary-authority/southend,ED Children & Public Health,Children And Education Services,3441,McDonalds,17/08/2023,12061160,7.98,Refreshments for young persons,Fast Food Restaurants (5814)
Southend-on-Sea Borough Council,http://opendatacommunities.org/id/unitary-authority/southend,ED Children & Public Health,Children And Education Services,3441,McDonalds,17/08/2023,12061160,7.99,refreshments for young person,Fast Food Restaurants (5814)
Southend-on-Sea Borough Council,http://opendatacommunities.org/id/unitary-authority/southend,ED Children & Public Health,Children And Education Services,3441,Teamsport Basildon,17/08/2023,12061160,11.8,Refreshments for young people at Basildon Go Karts,Member Clubs/Sport/Rec/Golf (7997)
Southend-on-Sea Borough Council,http://opendatacommunities.org/id/unitary-authority/southend,ED Children & Public Health,Children And Education Services,3441,Teamsport Basildon,17/08/2023,12061160,88.8,Go Karting at Basildon Go Karts group session as positive activity for reward.,Member Clubs/Sport/Rec/Golf (7997)
Southend-on-Sea Borough Council,http://opendatacommunities.org/id/unitary-authority/southend,ED Children & Public Health,Children And Education Services,3425,Poundstretcher 357,17/08/2023,12061160,8,Wool for reparation sessions,Variety Stores (5331)
Southend-on-Sea Borough Council,http://opendatacommunities.org/id/unitary-authority/southend,"ED Strategy, Change & Governance",Central Services to the Public,7140,Amznmktplace,17/08/2023,12061160,8.84,wire brush for stock,Misc Speciality Retail (5999)
Southend-on-Sea Borough Council,http://opendatacommunities.org/id/unitary-authority/southend,"ED Strategy, Change & Governance",Central Services to the Public,7140,Amznmktplace,17/08/2023,12061160,12.7,thread lock for stock,Misc Speciality Retail (5999)
Southend-on-Sea Borough Council,http://opendatacommunities.org/id/unitary-authority/southend,"ED Strategy, Change & Governance",Central Services to the Public,7140,Amznmktplace,17/08/2023,12061160,15.96,assorted wire brush sets,Misc Speciality Retail (5999)
Southend-on-Sea Borough Council,http://opendatacommunities.org/id/unitary-authority/southend,"ED Strategy, Change & Governance",Central Services to the Public,7140,Amznmktplace,17/08/2023,12061160,71.97,"washing up liquid for tower kitchens, stock",Misc Speciality Retail (5999)
Southend-on-Sea Borough Council,http://opendatacommunities.org/id/unitary-authority/southend,ED Adults & Communities,Cultural And Related Services,4256,Www.Puckator.Co.Uk,17/08/2023,12061160,176.98,Retail Merchandise for libraries,Gift/Card/Novelty And Souvenir Stores (5947)
Southend-on-Sea Borough Council,http://opendatacommunities.org/id/unitary-authority/southend,ED Adults & Communities,Cultural And Related Services,4055,Www.Solopress.Com,17/08/2023,12061160,60.97,Pip Stickers for activity sheets.,Misc Publishing & Printing (2741)
Southend-on-Sea Borough Council,http://opendatacommunities.org/id/unitary-authority/southend,ED Children & Public Health,Children And Education Services,3030,Amznmktplace,17/08/2023,12061160,19.88,bulk paper for friars family centre,Misc Speciality Retail (5999)
Southend-on-Sea Borough Council,http://opendatacommunities.org/id/unitary-authority/southend,"ED Strategy, Change & Governance",Environmental And Regulatory Services,4506,Amznmktplace,17/08/2023,12061160,13.58,door closer,Misc Speciality Retail (5999)
Southend-on-Sea Borough Council,http://opendatacommunities.org/id/unitary-authority/southend,ED Children & Public Health,Children And Education Services,3471,Essex Supplies (UK) Lt,17/08/2023,12061160,41.99,cleaning supplies for syc kitchen,Specialty Cleaning/Polishing (2842)
Southend-on-Sea Borough Council,http://opendatacommunities.org/id/unitary-authority/southend,ED Children & Public Health,Children And Education Services,3396,Costa Coffee 43010627,17/08/2023,12061160,4.2,Drink for LM - positive activity,Fast Food Restaurants (5814)
Southend-on-Sea Borough Council,http://opendatacommunities.org/id/unitary-authority/southend,ED Children & Public Health,Children And Education Services,3396,McDonalds 859,17/08/2023,12061160,7.57,Food for AR,Fast Food Restaurants (5814)
Southend-on-Sea Borough Council,http://opendatacommunities.org/id/unitary-authority/southend,ED Adults & Communities,Cultural And Related Services,4055,Amznmktplace,18/08/2023,12061160,24.17,Paint Pens for City Jam Creative Open Day,Misc Speciality Retail (5999)
Southend-on-Sea Borough Council,http://opendatacommunities.org/id/unitary-authority/southend,ED Adults & Communities,Cultural And Related Services,4225,Airbnb * Hm9zzendym,18/08/2023,12061160,957.04,"City Jam - Headline artist, Jeks, (USA) accommodation for two weeks, arriving ahead of main festival *",Travel Agencies (4722)
Southend-on-Sea Borough Council,http://opendatacommunities.org/id/unitary-authority/southend,ED Adults & Communities,Cultural And Related Services,4256,Sp Conservation Reso,18/08/2023,12061160,32.89, of specialist acid free tissue paper for conservation of archive items.,Artist/Craft Shops (5970)
Southend-on-Sea Borough Council,http://opendatacommunities.org/id/unitary-authority/southend,ED Adults & Communities,Cultural And Related Services,4256,Amznmktplace,18/08/2023,12061160,10.96,General stationery for all libraries,Misc Speciality Retail (5999)
Southend-on-Sea Borough Council,http://opendatacommunities.org/id/unitary-authority/southend,ED Adults & Communities,Cultural And Related Services,4256,Amznmktplace,18/08/2023,12061160,11.98,General stationery for all libraries,Misc Speciality Retail (5999)
Southend-on-Sea Borough Council,http://opendatacommunities.org/id/unitary-authority/southend,ED Adults & Communities,Cultural And Related Services,7111,Thomson Reuters UK Ltd,18/08/2023,12061160,96,JCT MW 2016 CONTRACT FOR PRJ 1786,Professional Services - Def (8999)
Southend-on-Sea Borough Council,http://opendatacommunities.org/id/unitary-authority/southend,ED Adults & Communities,Cultural And Related Services,4015,Food Museum,18/08/2023,12061160,20.7,Subsistence at the Food museum for two people for mystery shopping scheme. (Using all services is a *,Eating Places/Restaurants (5812)
Southend-on-Sea Borough Council,http://opendatacommunities.org/id/unitary-authority/southend,ED Adults & Communities,Cultural And Related Services,4015,Food Museum,18/08/2023,12061160,30,Entrance to the Food Museum for 2 x people undertaking the mystery shopper scheme for museums (we ge *,Eating Places/Restaurants (5812)
Southend-on-Sea Borough Council,http://opendatacommunities.org/id/unitary-authority/southend,ED Children & Public Health,Children And Education Services,3396,Liquid Flair,18/08/2023,12061160,4.95,drink bought for EO as part of engagement.,Misc Speciality Retail (5999)
Southend-on-Sea Borough Council,http://opendatacommunities.org/id/unitary-authority/southend,ED Children & Public Health,Children And Education Services,3396,Kfc Greyhound Southend,18/08/2023,12061160,12.66,food bought for HC as part of postive activity,Fast Food Restaurants (5814)
Southend-on-Sea Borough Council,http://opendatacommunities.org/id/unitary-authority/southend,"ED Strategy, Change & Governance",Central Services to the Public,7140,Amznmktplace,18/08/2023,12061160,13.7,tap reseater needed for civic 2,Misc Speciality Retail (5999)
Southend-on-Sea Borough Council,http://opendatacommunities.org/id/unitary-authority/southend,"ED Strategy, Change & Governance",Central Services to the Public,7140,Amznmktplace,18/08/2023,12061160,241.1,Batteries for CR1 micrphones,Misc Speciality Retail (5999)
Southend-on-Sea Borough Council,http://opendatacommunities.org/id/unitary-authority/southend,ED Children & Public Health,Children And Education Services,3030,Amznmktplace,18/08/2023,12061160,23.9,hanging files for filing cabinet friars,Misc Speciality Retail (5999)
Southend-on-Sea Borough Council,http://opendatacommunities.org/id/unitary-authority/southend,ED Children & Public Health,Children And Education Services,3992,Holiday Inns,18/08/2023,12061160,250.2,Hotel booking for family in respect of contact.,Holiday Inn (3501)
Southend-on-Sea Borough Council,http://opendatacommunities.org/id/unitary-authority/southend,ED Children & Public Health,Children And Education Services,3471,Kingpins Bowl,18/08/2023,12061160,436,Balance paid at King Pins Bowling Alley for HAF summer activity trip for young people ages 8-14 year *,Bowling Alleys (7933)
Southend-on-Sea Borough Council,http://opendatacommunities.org/id/unitary-authority/southend,ED Adults & Communities,Cultural And Related Services,4055,Harpans Express,19/08/2023,12061160,1.99,Milk for Gallery,Grocery Stores/Supermarkets (5411)
Southend-on-Sea Borough Council,http://opendatacommunities.org/id/unitary-authority/southend,ED Adults & Communities,Cultural And Related Services,4055,Harpans Express,19/08/2023,12061160,2.29,Milk for Gallery,Grocery Stores/Supermarkets (5411)
Southend-on-Sea Borough Council,http://opendatacommunities.org/id/unitary-authority/southend,ED Adults & Communities,Cultural And Related Services,4055,Harpans Express,19/08/2023,12061160,0.3,Milk for Gallery,Grocery Stores/Supermarkets (5411)
Southend-on-Sea Borough Council,http://opendatacommunities.org/id/unitary-authority/southend,ED Adults & Communities,Cultural And Related Services,4055,Station News,19/08/2023,12061160,6.34,Biscuits for Contemporary Elders session.,Grocery Stores/Supermarkets (5411)
Southend-on-Sea Borough Council,http://opendatacommunities.org/id/unitary-authority/southend,ED Adults & Communities,Cultural And Related Services,4055,Station News,19/08/2023,12061160,4.94,Biscuits for Contemporary Elders session.,Grocery Stores/Supermarkets (5411)
Southend-on-Sea Borough Council,http://opendatacommunities.org/id/unitary-authority/southend,"ED Strategy, Change & Governance",Central Services to the Public,2045,Canva* 03882-33924760,20/08/2023,12061160,99.99,Canva pro subscription for 2023/24,Commercial Photo/Art/Graph (7333)
Southend-on-Sea Borough Council,http://opendatacommunities.org/id/unitary-authority/southend,ED Children & Public Health,Children And Education Services,3030,Amznmktplace,20/08/2023,12061160,6.98,fridge temperature gauge for friars new fridge,Misc Speciality Retail (5999)
Southend-on-Sea Borough Council,http://opendatacommunities.org/id/unitary-authority/southend,ED Children & Public Health,Children And Education Services,3390,Amznmktplace,20/08/2023,12061160,7.28,Mouse mat for staff member with arthritis,Misc Speciality Retail (5999)
Southend-on-Sea Borough Council,http://opendatacommunities.org/id/unitary-authority/southend,ED Finance & Resources,Central Services to the Public,2070,Trainline,20/08/2023,12061160,28.92,REDACTED PERSONAL DATA train travel Southend Victoria to Luton airport.,Passenger Railways (4112)
Southend-on-Sea Borough Council,http://opendatacommunities.org/id/unitary-authority/southend,ED Finance & Resources,Central Services to the Public,2070,Trainline,20/08/2023,12061160,43.28,REDACTED PERSONAL DATA train travel Southend Victoria to Luton Airport,Passenger Railways (4112)
Southend-on-Sea Borough Council,http://opendatacommunities.org/id/unitary-authority/southend,ED Finance & Resources,Central Services to the Public,2070,Edinburgh Airport,20/08/2023,12061160,59.39,REDACTED PERSONAL DATA parking Edinburgh Airport 04/09/23 - 08/09/23,"Parking Lots, Meters, Garages (7523)"
Southend-on-Sea Borough Council,http://opendatacommunities.org/id/unitary-authority/southend,ED Finance & Resources,Central Services to the Public,2070,Greater Anglia Trains,20/08/2023,12061160,68.05,REDACTED PERSONAL DATA return train travel Southend Victoria/Stansted airport 21/08/23 - 24/08/23,Passenger Railways (4112)
Southend-on-Sea Borough Council,http://opendatacommunities.org/id/unitary-authority/southend,ED Adults & Communities,Cultural And Related Services,4256,Www.Preservationequipm,18/08/2023,12061160,11.34,Specialist acid free tape for preservation of archive material.,Public Warehousing (4225)
Southend-on-Sea Borough Council,http://opendatacommunities.org/id/unitary-authority/southend,ED Adults & Communities,Cultural And Related Services,4225,B & Q 1372,21/08/2023,12061160,22,City Jam - Paint for pop up park and pier picnic benches,Home Supply Warehouse Stores (5200)
Southend-on-Sea Borough Council,http://opendatacommunities.org/id/unitary-authority/southend,ED Adults & Communities,Cultural And Related Services,4225,B & Q 1372,21/08/2023,12061160,48,City Jam - Paint for pop up park/pier picnic benches,Home Supply Warehouse Stores (5200)
Southend-on-Sea Borough Council,http://opendatacommunities.org/id/unitary-authority/southend,ED Adults & Communities,Cultural And Related Services,4225,Www.Argos.Co.Uk,21/08/2023,12061160,82.95,City Jam - benches/seating for pop up park and pier zones,Department Stores (5311)
Southend-on-Sea Borough Council,http://opendatacommunities.org/id/unitary-authority/southend,ED Adults & Communities,Cultural And Related Services,4225,Expressgrass.Com,21/08/2023,12061160,1003.64,City Jam - Artificial grass for high street pop up park zone.,Lawn/Garden Supply/Nursery (5261)
Southend-on-Sea Borough Council,http://opendatacommunities.org/id/unitary-authority/southend,ED Finance & Resources,Children And Education Services,3201,Markallengroup.Com/Ma-,21/08/2023,12061160,504,Tes SEND Conference October 2023,Business Services - Default (7399)
Southend-on-Sea Borough Council,http://opendatacommunities.org/id/unitary-authority/southend,ED Children & Public Health,Children And Education Services,3992,Trainline,21/08/2023,12061160,193.99,"17024228-Travel for father, on wishing well visit to son. CIC team 3992.TM approved as TW sent to f *",Passenger Railways (4112)
Southend-on-Sea Borough Council,http://opendatacommunities.org/id/unitary-authority/southend,ED Children & Public Health,Children And Education Services,3030,Asda Superstore,21/08/2023,12061160,1.5,Resources for Family Centre Sessions,Grocery Stores/Supermarkets (5411)
Southend-on-Sea Borough Council,http://opendatacommunities.org/id/unitary-authority/southend,ED Children & Public Health,Children And Education Services,3030,Asda Superstore,21/08/2023,12061160,20.25,Resources for Family Centre Sessions,Grocery Stores/Supermarkets (5411)
Southend-on-Sea Borough Council,http://opendatacommunities.org/id/unitary-authority/southend,ED Children & Public Health,Children And Education Services,3396,McDonalds,21/08/2023,12061160,2.49,Breakfast with ES.,Fast Food Restaurants (5814)
Southend-on-Sea Borough Council,http://opendatacommunities.org/id/unitary-authority/southend,ED Children & Public Health,Children And Education Services,3396,McDonalds,21/08/2023,12061160,8.48,Breakfast with ES.,Fast Food Restaurants (5814)
Southend-on-Sea Borough Council,http://opendatacommunities.org/id/unitary-authority/southend,ED Children & Public Health,Children And Education Services,3396,Starbucks Coffee,21/08/2023,12061160,5.75,MG Lunch- looked after child visit.,Fast Food Restaurants (5814)
Southend-on-Sea Borough Council,http://opendatacommunities.org/id/unitary-authority/southend,ED Children & Public Health,Children And Education Services,3396,Starbucks Coffee,21/08/2023,12061160,5.25,MG Lunch- looked after child visit.,Fast Food Restaurants (5814)
Southend-on-Sea Borough Council,http://opendatacommunities.org/id/unitary-authority/southend,ED Children & Public Health,Children And Education Services,3445,Amznmktplace,21/08/2023,12061160,9.48,resources needed to deliver the Strength Based Parenting programme . A range of materials has been p *,Misc Speciality Retail (5999)
Southend-on-Sea Borough Council,http://opendatacommunities.org/id/unitary-authority/southend,ED Children & Public Health,Children And Education Services,3445,Amznmktplace,21/08/2023,12061160,9.69,resources needed to deliver the Strength Based Parenting programme . A range of materials has been p *,Misc Speciality Retail (5999)
Southend-on-Sea Borough Council,http://opendatacommunities.org/id/unitary-authority/southend,ED Children & Public Health,Children And Education Services,3445,Amazon* 204-2524034-69,21/08/2023,12061160,9.87,resources needed to deliver the Strength Based Parenting programme . A range of materials has been p *,Phone Serv/Equip Non-Util (4812)
Southend-on-Sea Borough Council,http://opendatacommunities.org/id/unitary-authority/southend,ED Children & Public Health,Children And Education Services,3445,Amznmktplace,21/08/2023,12061160,15.9,resources needed to deliver the Strength Based Parenting programme . A range of materials has been p *,Misc Speciality Retail (5999)
Southend-on-Sea Borough Council,http://opendatacommunities.org/id/unitary-authority/southend,ED Children & Public Health,Children And Education Services,3445,Amazon* 204-8693743-38,21/08/2023,12061160,16.52,resources needed to deliver the Strength Based Parenting programme . A range of materials has been p *,Phone Serv/Equip Non-Util (4812)
Southend-on-Sea Borough Council,http://opendatacommunities.org/id/unitary-authority/southend,ED Children & Public Health,Children And Education Services,3445,Amznmktplace,21/08/2023,12061160,60.76,resources needed to deliver the Strength Based Parenting programme . A range of materials has been p *,Misc Speciality Retail (5999)
Southend-on-Sea Borough Council,http://opendatacommunities.org/id/unitary-authority/southend,ED Adults & Communities,Cultural And Related Services,4015,The Range,21/08/2023,12061160,7.98,Items needed to make repairs to Prittlewell Priory Museum internal door.,Misc Home Furnishing (5719)
Southend-on-Sea Borough Council,http://opendatacommunities.org/id/unitary-authority/southend,ED Adults & Communities,Cultural And Related Services,4045,Www.Skips4u-Essex.Com,21/08/2023,12061160,410,Removal of Rubbish from a clear out project from the Art gallery and Central museum.,Business Services - Default (7399)
Southend-on-Sea Borough Council,http://opendatacommunities.org/id/unitary-authority/southend,"ED Strategy, Change & Governance",Central Services to the Public,7140,St Anns,21/08/2023,12061160,133.68,6 sets of tap heads for stock that are used in the cleaning cupboards in the civic tower,Lumber/Build. Supply Stores (5211)
Southend-on-Sea Borough Council,http://opendatacommunities.org/id/unitary-authority/southend,ED Children & Public Health,Children And Education Services,3471,Asda Superstore,21/08/2023,12061160,2.95,"food for youth work, summer programme at SYC",Grocery Stores/Supermarkets (5411)
Southend-on-Sea Borough Council,http://opendatacommunities.org/id/unitary-authority/southend,ED Children & Public Health,Children And Education Services,3471,Asda Superstore,21/08/2023,12061160,37.5,"food for youth work, summer programme at syc",Grocery Stores/Supermarkets (5411)
Southend-on-Sea Borough Council,http://opendatacommunities.org/id/unitary-authority/southend,ED Children & Public Health,Children And Education Services,3471,Lidl Gb,21/08/2023,12061160,43.51,"food for youth work, summer programme at syc",Grocery Stores/Supermarkets (5411)
Southend-on-Sea Borough Council,http://opendatacommunities.org/id/unitary-authority/southend,ED Children & Public Health,Children And Education Services,3471,Lidl Gb,21/08/2023,12061160,32.91,"food for youth work, summer programme at syc",Grocery Stores/Supermarkets (5411)
Southend-on-Sea Borough Council,http://opendatacommunities.org/id/unitary-authority/southend,ED Children & Public Health,Children And Education Services,3492,Trainline,21/08/2023,12061160,79.69,Train ticket to travel to visit a child.,Passenger Railways (4112)
Southend-on-Sea Borough Council,http://opendatacommunities.org/id/unitary-authority/southend,ED Finance & Resources,Central Services to the Public,7110,Www.Phoenixhsc.Co.Uk,21/08/2023,12061160,132,Module Exam Fee - REDACTED PERSONAL DATA,Schools - Default (8299)
Southend-on-Sea Borough Council,http://opendatacommunities.org/id/unitary-authority/southend,ED Children & Public Health,Children And Education Services,3491,The Farm Shop,21/08/2023,12061160,3.4,Lunch while out of office,Misc Food Stores - Default (5499)
Southend-on-Sea Borough Council,http://opendatacommunities.org/id/unitary-authority/southend,ED Children & Public Health,Children And Education Services,3491,Parkway,21/08/2023,12061160,15.5,Parking for Team manager in court all day,"Parking Lots, Meters, Garages (7523)"
Southend-on-Sea Borough Council,http://opendatacommunities.org/id/unitary-authority/southend,ED Children & Public Health,Children And Education Services,3491,Travelodge Gb0000,21/08/2023,12061160,333.5,Hotel accomodation for a family in CPS 3,Travelodge (3615)
Southend-on-Sea Borough Council,http://opendatacommunities.org/id/unitary-authority/southend,ED Children & Public Health,Children And Education Services,3396,Asda Superstore,21/08/2023,12061160,5.5,"Ingredients for young person, cooking session.",Grocery Stores/Supermarkets (5411)
Southend-on-Sea Borough Council,http://opendatacommunities.org/id/unitary-authority/southend,ED Children & Public Health,Children And Education Services,3396,Go Ape,21/08/2023,12061160,17,Positive activity for young person.,Amusement/Rec Serv - Def (7999)
Southend-on-Sea Borough Council,http://opendatacommunities.org/id/unitary-authority/southend,ED Children & Public Health,Children And Education Services,3445,Amazon* 204-8371206-20,21/08/2023,12061160,14.93,resources needed to deliver the Strength Based Parenting programme . A range of materials has been p *,Phone Serv/Equip Non-Util (4812)
Southend-on-Sea Borough Council,http://opendatacommunities.org/id/unitary-authority/southend,ED Children & Public Health,Children And Education Services,3445,Amazon* 204-2380182-40,21/08/2023,12061160,19.14,resources needed to deliver the Strength Based Parenting programme . A range of materials has been p *,Phone Serv/Equip Non-Util (4812)
Southend-on-Sea Borough Council,http://opendatacommunities.org/id/unitary-authority/southend,ED Adults & Communities,Cultural And Related Services,4225,Airbnb * Hmykxaqsqb,22/08/2023,12061160,404.61,City Jam - Accommodation for headline artists.,Travel Agencies (4722)
Southend-on-Sea Borough Council,http://opendatacommunities.org/id/unitary-authority/southend,ED Children & Public Health,Children And Education Services,3165,Amznmktplace,22/08/2023,12061160,17.68,cardboard folders for schools info storage,Misc Speciality Retail (5999)
Southend-on-Sea Borough Council,http://opendatacommunities.org/id/unitary-authority/southend,ED Children & Public Health,Children And Education Services,3992,Pgl Travel,22/08/2023,12061160,1148.3,REDACTED PERSONAL DATA head of service agreed to CIC to attend a week activity,Travel Agencies (4722)
Southend-on-Sea Borough Council,http://opendatacommunities.org/id/unitary-authority/southend,ED Adults & Communities,Cultural And Related Services,7515,Asda Superstore,22/08/2023,12061160,19.35,Flowers for floristry order.,Grocery Stores/Supermarkets (5411)
Southend-on-Sea Borough Council,http://opendatacommunities.org/id/unitary-authority/southend,ED Children & Public Health,Children And Education Services,3436,McDonalds,22/08/2023,12061160,11.88,Food whilst at prison visit 100 miles from office for myself and another professional,Fast Food Restaurants (5814)
Southend-on-Sea Borough Council,http://opendatacommunities.org/id/unitary-authority/southend,ED Children & Public Health,Children And Education Services,3030,Ryman,22/08/2023,12061160,7.98,Resources for Family Centre Sessions,Stationery Stores (5943)
Southend-on-Sea Borough Council,http://opendatacommunities.org/id/unitary-authority/southend,ED Children & Public Health,Children And Education Services,3030,Asda Superstore,22/08/2023,12061160,6,Resources for Family Centre Sessions,Grocery Stores/Supermarkets (5411)
Southend-on-Sea Borough Council,http://opendatacommunities.org/id/unitary-authority/southend,ED Children & Public Health,Children And Education Services,3030,Asda Superstore,22/08/2023,12061160,22.14,Resources for Family Centre Sessions,Grocery Stores/Supermarkets (5411)
Southend-on-Sea Borough Council,http://opendatacommunities.org/id/unitary-authority/southend,ED Children & Public Health,Children And Education Services,3396,McDonalds,22/08/2023,12061160,2.49,TM breakfast before YOS. CIN visit.,Fast Food Restaurants (5814)
Southend-on-Sea Borough Council,http://opendatacommunities.org/id/unitary-authority/southend,ED Children & Public Health,Children And Education Services,3396,McDonalds,22/08/2023,12061160,5.89,TM breakfast before YOS. CIN visit.,Fast Food Restaurants (5814)
Southend-on-Sea Borough Council,http://opendatacommunities.org/id/unitary-authority/southend,ED Children & Public Health,Children And Education Services,3396,McDonalds,22/08/2023,12061160,9.87,TM breakfast- Open as CIN.,Fast Food Restaurants (5814)
Southend-on-Sea Borough Council,http://opendatacommunities.org/id/unitary-authority/southend,ED Children & Public Health,Children And Education Services,3396,Kfc Greyhound Southend,22/08/2023,12061160,10.68,MG Lunch - looked after visit.,Fast Food Restaurants (5814)
Southend-on-Sea Borough Council,http://opendatacommunities.org/id/unitary-authority/southend,ED Children & Public Health,Children And Education Services,3445,Amznmktplace,22/08/2023,12061160,3.62,resources needed to deliver the Strength Based Parenting programme . A range of materials has been p *,Misc Speciality Retail (5999)
Southend-on-Sea Borough Council,http://opendatacommunities.org/id/unitary-authority/southend,ED Children & Public Health,Children And Education Services,3445,Www.Paulsdiscount.Co.Uk,22/08/2023,12061160,70.95, of school uniform for client who has recently moved in to area and has no current access to *,Men/Boys Clothing/Acc Stores (5611)
Southend-on-Sea Borough Council,http://opendatacommunities.org/id/unitary-authority/southend,"ED Strategy, Change & Governance",Central Services to the Public,7140,Amznmktplace,22/08/2023,12061160,8.77,multitool replacement,Misc Speciality Retail (5999)
Southend-on-Sea Borough Council,http://opendatacommunities.org/id/unitary-authority/southend,ED Children & Public Health,Children And Education Services,3030,Amznmktplace,22/08/2023,12061160,15.18,labels for label machine for family centre use,Misc Speciality Retail (5999)
Southend-on-Sea Borough Council,http://opendatacommunities.org/id/unitary-authority/southend,ED Children & Public Health,Children And Education Services,3030,Sumup *the Potting Sh,22/08/2023,12061160,575,gemma farm hire for friars fun day - this was all i could get as a receipt as the invoice was paid v *,Misc Speciality Retail (5999)
Southend-on-Sea Borough Council,http://opendatacommunities.org/id/unitary-authority/southend,ED Children & Public Health,Children And Education Services,3396,Cjs Bowling Ltd,22/08/2023,12061160,14.3,Bowling as a positive activity for AIPT young person (JB). No VAT number given on receipt.,Bowling Alleys (7933)
Southend-on-Sea Borough Council,http://opendatacommunities.org/id/unitary-authority/southend,ED Children & Public Health,Children And Education Services,3471,Booker Ltd - 38577234,22/08/2023,12061160,91.02,food supplies for cafe and youth work at syc,Grocery Stores/Supermarkets (5411)
Southend-on-Sea Borough Council,http://opendatacommunities.org/id/unitary-authority/southend,ED Children & Public Health,Children And Education Services,3471,Booker Ltd - 38577234,22/08/2023,12061160,96.62,food supplies for cafe and youth work at syc,Grocery Stores/Supermarkets (5411)
Southend-on-Sea Borough Council,http://opendatacommunities.org/id/unitary-authority/southend,ED Children & Public Health,Children And Education Services,3390,Amznbusiness,22/08/2023,12061160,22.34,Baby Wipes for the rooms,Misc Speciality Retail (5999)
Southend-on-Sea Borough Council,http://opendatacommunities.org/id/unitary-authority/southend,ED Children & Public Health,Children And Education Services,3390,Amznbusiness,22/08/2023,12061160,22.35,Baby Wipes for use in the rooms,Misc Speciality Retail (5999)
Southend-on-Sea Borough Council,http://opendatacommunities.org/id/unitary-authority/southend,ED Adults & Communities,Cultural And Related Services,4255,B&q Marketplace,22/08/2023,12061160,791.92,Picnic Tables for City Jam - urban garden & Pier,Lumber/Build. Supply Stores (5211)
Southend-on-Sea Borough Council,http://opendatacommunities.org/id/unitary-authority/southend,ED Finance & Resources,Children And Education Services,3201,Marks&spencer Plc Sf,22/08/2023,12061160,12.8,SLN Biscuits,Grocery Stores/Supermarkets (5411)
Southend-on-Sea Borough Council,http://opendatacommunities.org/id/unitary-authority/southend,ED Adults & Communities,Cultural And Related Services,4225,Pebbles One Limited,23/08/2023,12061160,17.25,City Jam - Teas for build team volunteers,Eating Places/Restaurants (5812)
Southend-on-Sea Borough Council,http://opendatacommunities.org/id/unitary-authority/southend,ED Adults & Communities,Cultural And Related Services,4225,Basildon Paint & Suppl,23/08/2023,12061160,100.5,City Jam - Emulsion base coat for temporary walls/cubes,Glass/Paint/Wallpaper Store (5231)
Southend-on-Sea Borough Council,http://opendatacommunities.org/id/unitary-authority/southend,ED Adults & Communities,Cultural And Related Services,4225,Ebay O*05-10452-91818,23/08/2023,12061160,130.7,City Jam - Hessian to cover heras fencing surrounding UKIS construction site on pier AMF deck.,Department Stores (5311)
Southend-on-Sea Borough Council,http://opendatacommunities.org/id/unitary-authority/southend,ED Adults & Communities,Cultural And Related Services,4225,Dulux Decorator Centre,23/08/2023,12061160,751.1,City Jam - Emulsion base coat for permanent and temp walls.,Paint (5198)
Southend-on-Sea Borough Council,http://opendatacommunities.org/id/unitary-authority/southend,"ED Strategy, Change & Governance",Central Services to the Public,7145,Stalbridge Linen S,23/08/2023,12061160,127.81,Laundry services for Porters Civic House,Dry Cleaners (7216)
Southend-on-Sea Borough Council,http://opendatacommunities.org/id/unitary-authority/southend,ED Children & Public Health,Children And Education Services,3165,Amznmktplace,23/08/2023,12061160,2.75,address labels,Misc Speciality Retail (5999)
Southend-on-Sea Borough Council,http://opendatacommunities.org/id/unitary-authority/southend,ED Children & Public Health,Children And Education Services,3165,Amznmktplace,23/08/2023,12061160,14.96,materials,Misc Speciality Retail (5999)
Southend-on-Sea Borough Council,http://opendatacommunities.org/id/unitary-authority/southend,ED Children & Public Health,Children And Education Services,3165,Amznmktplace,23/08/2023,12061160,20.26,manilla folders,Misc Speciality Retail (5999)
Southend-on-Sea Borough Council,http://opendatacommunities.org/id/unitary-authority/southend,ED Adults & Communities,Central Services to the Public,7540,Amznmktplace,23/08/2023,12061160,25.49,Seat Covers for Grounds Maintenance Vans,Misc Speciality Retail (5999)
Southend-on-Sea Borough Council,http://opendatacommunities.org/id/unitary-authority/southend,ED Children & Public Health,Children And Education Services,3791,Www.Argos.Co.Uk,23/08/2023,12061160,30,REDACTED PERSONAL DATA requested bedding for family while going to refuge before moving to a stable housing,Department Stores (5311)
Southend-on-Sea Borough Council,http://opendatacommunities.org/id/unitary-authority/southend,ED Children & Public Health,Children And Education Services,3992,Pgl Travel,23/08/2023,12061160,280,REDACTED PERSONAL DATAservice manager approved spend for a CIC to go to a adventure holiday as part of a care pack *,Travel Agencies (4722)
Southend-on-Sea Borough Council,http://opendatacommunities.org/id/unitary-authority/southend,ED Adults & Communities,Cultural And Related Services,4256,Trainline,23/08/2023,12061160,75.26,Train tickets to attend Autumn Fayre at NEC Birmingham,Passenger Railways (4112)
Southend-on-Sea Borough Council,http://opendatacommunities.org/id/unitary-authority/southend,ED Adults & Communities,Cultural And Related Services,4256,Premier Inn,23/08/2023,12061160,80,Overnight accommodation for visit to Autumn Trade fayre in Birmingham,Premier Travel Inns (3811)
Southend-on-Sea Borough Council,http://opendatacommunities.org/id/unitary-authority/southend,ED Children & Public Health,Children And Education Services,3396,McDonalds,23/08/2023,12061160,10.5,food for young person and sibling. - RS- incentive and relationship building.the receipt was not *,Fast Food Restaurants (5814)
Southend-on-Sea Borough Council,http://opendatacommunities.org/id/unitary-authority/southend,ED Children & Public Health,Children And Education Services,3441,McDonalds,23/08/2023,12061160,2.65,Refreshments for young person,Fast Food Restaurants (5814)
Southend-on-Sea Borough Council,http://opendatacommunities.org/id/unitary-authority/southend,ED Children & Public Health,Children And Education Services,3441,McDonalds,23/08/2023,12061160,5.04,Refreshments for young person,Fast Food Restaurants (5814)
Southend-on-Sea Borough Council,http://opendatacommunities.org/id/unitary-authority/southend,ED Children & Public Health,Children And Education Services,3396,McDonalds,23/08/2023,12061160,6.41,Young person lunch at McDonalds LC - Open to AIPT Early Help,Fast Food Restaurants (5814)
Southend-on-Sea Borough Council,http://opendatacommunities.org/id/unitary-authority/southend,ED Children & Public Health,Children And Education Services,3396,Subway 66233 Toomey Rochf,23/08/2023,12061160,1.99,Lunch purchased for Young person open to Social Care - SH,Fast Food Restaurants (5814)
Southend-on-Sea Borough Council,http://opendatacommunities.org/id/unitary-authority/southend,ED Children & Public Health,Children And Education Services,3396,Subway 66233 Toomey Rochf,23/08/2023,12061160,4.99,Lunch purchased for Young person open to Social Care - SH,Fast Food Restaurants (5814)
Southend-on-Sea Borough Council,http://opendatacommunities.org/id/unitary-authority/southend,ED Children & Public Health,Children And Education Services,3396,McDonalds,23/08/2023,12061160,7.68,Breakfast for Young Person open to AIPT Social Care - MG,Fast Food Restaurants (5814)
Southend-on-Sea Borough Council,http://opendatacommunities.org/id/unitary-authority/southend,ED Children & Public Health,Children And Education Services,3396,McDonalds,23/08/2023,12061160,11.67,Breakfast with a young person open to AIPT Early Help,Fast Food Restaurants (5814)
Southend-on-Sea Borough Council,http://opendatacommunities.org/id/unitary-authority/southend,ED Children & Public Health,Children And Education Services,3396,McDonalds,23/08/2023,12061160,7.51,McDonalds purchased for young person (SU) for AIPT contact after activity. VAT number: 59;7271302.,Fast Food Restaurants (5814)
Southend-on-Sea Borough Council,http://opendatacommunities.org/id/unitary-authority/southend,ED Children & Public Health,Children And Education Services,3396,Welcome Gym,23/08/2023,12061160,100,Gym membership for young person (SU) for AIPT positive activity.,Member Clubs/Sport/Rec/Golf (7997)
Southend-on-Sea Borough Council,http://opendatacommunities.org/id/unitary-authority/southend,ED Children & Public Health,Children And Education Services,3692,Ebay O*25-10441-61101,23/08/2023,12061160,49.99,Power cable for laptop,Department Stores (5311)
Southend-on-Sea Borough Council,http://opendatacommunities.org/id/unitary-authority/southend,ED Neighbourhoods & Environment,Environmental And Regulatory Services,4525,Sp Stoptopps,23/08/2023,12061160,97.49,CSU clothing / uniform items,Misc Speciality Retail (5999)
Southend-on-Sea Borough Council,http://opendatacommunities.org/id/unitary-authority/southend,ED Adults & Communities,Central Services to the Public,7540,Amznmktplace,24/08/2023,12061160,54.1,Seat Covers for Grounds Maintenance Vans,Misc Speciality Retail (5999)
Southend-on-Sea Borough Council,http://opendatacommunities.org/id/unitary-authority/southend,ED Adults & Communities,Cultural And Related Services,7111,Comms Express Ltd,23/08/2023,12061160,728.24,Focal Point Gallery - Replacement UPS for Screen Rack,Electronics Sales (5732)
Southend-on-Sea Borough Council,http://opendatacommunities.org/id/unitary-authority/southend,ED Adults & Communities,Cultural And Related Services,4225,Amznmktplace,24/08/2023,12061160,28.97,City Jam - Bunting to decorate hessian covered heras fencing on Pier AMF deck.,Misc Speciality Retail (5999)
Southend-on-Sea Borough Council,http://opendatacommunities.org/id/unitary-authority/southend,ED Adults & Communities,Cultural And Related Services,4225,Amznmktplace,24/08/2023,12061160,89.3,City Jam - blow up beds for artists staying at Metal,Misc Speciality Retail (5999)
Southend-on-Sea Borough Council,http://opendatacommunities.org/id/unitary-authority/southend,ED Adults & Communities,Cultural And Related Services,4225,Global Art Supplies Lt,24/08/2023,12061160,343.1,City Jam - additional paint supplies,Artist/Craft Shops (5970)
Southend-on-Sea Borough Council,http://opendatacommunities.org/id/unitary-authority/southend,ED Children & Public Health,Children And Education Services,3492,Travelodge Gb0000,24/08/2023,12061160,234.57,hotel for family in need,Travelodge (3615)
Southend-on-Sea Borough Council,http://opendatacommunities.org/id/unitary-authority/southend,ED Adults & Communities,Cultural And Related Services,4015,Dressandtextiles,24/08/2023,12061160,75,DATS conference at Ulster Museums. Dress and Textiles Specialists are not VAT registered.,Member Organizations - Def (8699)
Southend-on-Sea Borough Council,http://opendatacommunities.org/id/unitary-authority/southend,ED Children & Public Health,Children And Education Services,3436,Wm Morrisons Store,24/08/2023,12061160,7.44,biscuits for panel meetings,Grocery Stores/Supermarkets (5411)
Southend-on-Sea Borough Council,http://opendatacommunities.org/id/unitary-authority/southend,ED Children & Public Health,Children And Education Services,3396,McDonalds,24/08/2023,12061160,1.09,KM breakfast. CIN.,Fast Food Restaurants (5814)
Southend-on-Sea Borough Council,http://opendatacommunities.org/id/unitary-authority/southend,ED Children & Public Health,Children And Education Services,3396,McDonalds,24/08/2023,12061160,4.6,KM breakfast. CIN.,Fast Food Restaurants (5814)
Southend-on-Sea Borough Council,http://opendatacommunities.org/id/unitary-authority/southend,ED Children & Public Health,Children And Education Services,3396,Starbucks Coffee,24/08/2023,12061160,6.35,CH Lunch- looked after child visit.,Fast Food Restaurants (5814)
Southend-on-Sea Borough Council,http://opendatacommunities.org/id/unitary-authority/southend,ED Children & Public Health,Children And Education Services,3396,Starbucks Coffee,24/08/2023,12061160,4.08,CH Lunch- looked after child visit.,Fast Food Restaurants (5814)
Southend-on-Sea Borough Council,http://opendatacommunities.org/id/unitary-authority/southend,ED Children & Public Health,Children And Education Services,3396,Pauls Discount Clothing,24/08/2023,12061160,15.98,School uniform for MB and KB.,Clothing/Rent/Costume/Unifo (7296)
Southend-on-Sea Borough Council,http://opendatacommunities.org/id/unitary-authority/southend,ED Children & Public Health,Children And Education Services,3396,School Uniform Direct,24/08/2023,12061160,43.49,School blazer for MB- CP.,Uniforms & Commercial Clothing (5137)
Southend-on-Sea Borough Council,http://opendatacommunities.org/id/unitary-authority/southend,ED Children & Public Health,Children And Education Services,3396,McDonalds 859,24/08/2023,12061160,1.11,"breakfast bought for KG, who is currently not staying in the family home and undertaking restorative *",Fast Food Restaurants (5814)
Southend-on-Sea Borough Council,http://opendatacommunities.org/id/unitary-authority/southend,ED Children & Public Health,Children And Education Services,3396,McDonalds 859,24/08/2023,12061160,6.07,"breakfast bought for KG, who is currently not staying in the family home and undertaking restorative *",Fast Food Restaurants (5814)
Southend-on-Sea Borough Council,http://opendatacommunities.org/id/unitary-authority/southend,ED Growth & Housing,Planning Services,5641,Amznmktplace,24/08/2023,12061160,36.9,Envelopes to send Careers Leader handbook,Misc Speciality Retail (5999)
Southend-on-Sea Borough Council,http://opendatacommunities.org/id/unitary-authority/southend,ED Adults & Communities,Cultural And Related Services,4120,Amz*innovation Designs,24/08/2023,12061160,-35.63,Credit Voucher Amz*innovation Designs. Safety boots arrived in wrong size. Replacement in correct si *,Misc Speciality Retail (5999)
Southend-on-Sea Borough Council,http://opendatacommunities.org/id/unitary-authority/southend,ED Adults & Communities,Cultural And Related Services,4120,Ikea Ltd Shop Online,24/08/2023,12061160,495,Plants for pop up park (City Jam event) and for use on the Pier afterwards.,Furniture/Equip Stores (5712)
Southend-on-Sea Borough Council,http://opendatacommunities.org/id/unitary-authority/southend,"ED Strategy, Change & Governance",Central Services to the Public,7140,Amznmktplace,24/08/2023,12061160,104.92,Tape and light drivers for stock,Misc Speciality Retail (5999)
Southend-on-Sea Borough Council,http://opendatacommunities.org/id/unitary-authority/southend,ED Adults & Communities,Central Services to the Public,7540,Sth Essex Fastener,24/08/2023,12061160,207.65,This purchase is for hand paper wipes rolls to be used in the Parks mower workshop,Hardware Equipment/Supplies (5072)
Southend-on-Sea Borough Council,http://opendatacommunities.org/id/unitary-authority/southend,ED Adults & Communities,Cultural And Related Services,4120,Ikea Ltd Shop Online,24/08/2023,12061160,495,Plastic plants for decoration during the City Jam Event including delivery costs.,Furniture/Equip Stores (5712)
Southend-on-Sea Borough Council,http://opendatacommunities.org/id/unitary-authority/southend,ED Children & Public Health,Public Health,7665,Gasp,24/08/2023,12061160,385.56,Resources for the Stop Smoking Service,Schools - Default (8299)
Southend-on-Sea Borough Council,http://opendatacommunities.org/id/unitary-authority/southend,ED Children & Public Health,Children And Education Services,3396,Lidl Gb Eastwood,24/08/2023,12061160,8.71,Ingredients for cooking activity with young person.,Grocery Stores/Supermarkets (5411)
Southend-on-Sea Borough Council,http://opendatacommunities.org/id/unitary-authority/southend,ED Children & Public Health,Children And Education Services,3396,McDonalds,24/08/2023,12061160,10.39,Lunch for young person,Fast Food Restaurants (5814)
Southend-on-Sea Borough Council,http://opendatacommunities.org/id/unitary-authority/southend,ED Adults & Communities,Cultural And Related Services,4120,Izod & Burnip Ltd,24/08/2023,12061160,2.99,Materials for City Jam code 4230,Hardware Stores (5251)
Southend-on-Sea Borough Council,http://opendatacommunities.org/id/unitary-authority/southend,"ED Strategy, Change & Governance",Central Services to the Public,7140,Tvlicensing.Co.Uk,24/08/2023,12061160,159,Tv license for civic,Mgmt/Consult/Public Rel Ser (7392)
Southend-on-Sea Borough Council,http://opendatacommunities.org/id/unitary-authority/southend,ED Adults & Communities,Cultural And Related Services,4225,Screwfix Dir Ltd,25/08/2023,12061160,7.49,City Jam - Sealant gun for build,Lumber/Build. Supply Stores (5211)
Southend-on-Sea Borough Council,http://opendatacommunities.org/id/unitary-authority/southend,ED Adults & Communities,Cultural And Related Services,4225,B & Q 1372,25/08/2023,12061160,127.5,City Jam - Paint for picnic benches,Home Supply Warehouse Stores (5200)
Southend-on-Sea Borough Council,http://opendatacommunities.org/id/unitary-authority/southend,ED Adults & Communities,Cultural And Related Services,4200,Www.Sksigns.Co.Uk,25/08/2023,12061160,225.36,Traffic management 'Horses' for Belfairs Park,Misc Publishing & Printing (2741)
Southend-on-Sea Borough Council,http://opendatacommunities.org/id/unitary-authority/southend,ED Adults & Communities,Cultural And Related Services,4200,Www.Sksigns.Co.Uk,25/08/2023,12061160,228.96,Traffic management Horse signs for Belfairs Park,Misc Publishing & Printing (2741)
Southend-on-Sea Borough Council,http://opendatacommunities.org/id/unitary-authority/southend,ED Adults & Communities,Cultural And Related Services,7510,Bournes Green Service Sta,25/08/2023,12061160,59.1,Diesel for Van REDACTED PERSONAL DATA,Service Stations (5541)
Southend-on-Sea Borough Council,http://opendatacommunities.org/id/unitary-authority/southend,ED Adults & Communities,Cultural And Related Services,7111,Thomson Reuters UK Ltd,25/08/2023,12061160,96,JCT ON DEMAND MWD 2016 CONTRACT FOR PRJ 1733-5,Professional Services - Def (8999)
Southend-on-Sea Borough Council,http://opendatacommunities.org/id/unitary-authority/southend,ED Neighbourhoods & Environment,Central Services to the Public,7175,Dvla Vehicle Tax,25/08/2023,12061160,165,vehicle tax renewals 2023,Tax Payments (9311)
Southend-on-Sea Borough Council,http://opendatacommunities.org/id/unitary-authority/southend,ED Neighbourhoods & Environment,Central Services to the Public,7175,Dvla Vehicle Tax,25/08/2023,12061160,320,vehicle tax renewals 2023,Tax Payments (9311)
Southend-on-Sea Borough Council,http://opendatacommunities.org/id/unitary-authority/southend,ED Neighbourhoods & Environment,Central Services to the Public,7175,Dvla Vehicle Tax,25/08/2023,12061160,320,vehicle tax renewals 2023,Tax Payments (9311)
Southend-on-Sea Borough Council,http://opendatacommunities.org/id/unitary-authority/southend,ED Neighbourhoods & Environment,Central Services to the Public,7175,Dvla Vehicle Tax,25/08/2023,12061160,320,vehicle tax renewals 2023,Tax Payments (9311)
Southend-on-Sea Borough Council,http://opendatacommunities.org/id/unitary-authority/southend,ED Neighbourhoods & Environment,Central Services to the Public,7175,Dvla Vehicle Tax,25/08/2023,12061160,320,vehicle tax renewals 2023,Tax Payments (9311)
Southend-on-Sea Borough Council,http://opendatacommunities.org/id/unitary-authority/southend,ED Neighbourhoods & Environment,Central Services to the Public,7175,Dvla Vehicle Tax,25/08/2023,12061160,320,vehicle tax renewals 2023,Tax Payments (9311)
Southend-on-Sea Borough Council,http://opendatacommunities.org/id/unitary-authority/southend,ED Neighbourhoods & Environment,Central Services to the Public,7175,Dvla Vehicle Tax,25/08/2023,12061160,320,vehicle tax renewals 2023,Tax Payments (9311)
Southend-on-Sea Borough Council,http://opendatacommunities.org/id/unitary-authority/southend,ED Neighbourhoods & Environment,Central Services to the Public,7175,Dvla Vehicle Tax,25/08/2023,12061160,320,vehicke tax renewals 2023,Tax Payments (9311)
Southend-on-Sea Borough Council,http://opendatacommunities.org/id/unitary-authority/southend,ED Neighbourhoods & Environment,Central Services to the Public,7175,Dvla Vehicle Tax,25/08/2023,12061160,320,vehicle tax renewals 2023,Tax Payments (9311)
Southend-on-Sea Borough Council,http://opendatacommunities.org/id/unitary-authority/southend,ED Neighbourhoods & Environment,Central Services to the Public,7175,Dvla Vehicle Tax,25/08/2023,12061160,320,vehicle tax renewlas 2023,Tax Payments (9311)
Southend-on-Sea Borough Council,http://opendatacommunities.org/id/unitary-authority/southend,ED Neighbourhoods & Environment,Central Services to the Public,7175,Dvla Vehicle Tax,25/08/2023,12061160,320,vehicle tax renewals 2023,Tax Payments (9311)
Southend-on-Sea Borough Council,http://opendatacommunities.org/id/unitary-authority/southend,ED Neighbourhoods & Environment,Central Services to the Public,7175,Dvla Vehicle Tax,25/08/2023,12061160,320,vehicle tax renewals 2023,Tax Payments (9311)
Southend-on-Sea Borough Council,http://opendatacommunities.org/id/unitary-authority/southend,ED Neighbourhoods & Environment,Central Services to the Public,7175,Dvla Vehicle Tax,25/08/2023,12061160,320,vehicle tax renewals 2023,Tax Payments (9311)
Southend-on-Sea Borough Council,http://opendatacommunities.org/id/unitary-authority/southend,ED Neighbourhoods & Environment,Central Services to the Public,7175,Dvla Vehicle Tax,25/08/2023,12061160,320,vehicle tax renewals 2023,Tax Payments (9311)
Southend-on-Sea Borough Council,http://opendatacommunities.org/id/unitary-authority/southend,ED Neighbourhoods & Environment,Central Services to the Public,7175,Dvla Vehicle Tax,25/08/2023,12061160,320,vehicle tax renewal 2023,Tax Payments (9311)
Southend-on-Sea Borough Council,http://opendatacommunities.org/id/unitary-authority/southend,ED Neighbourhoods & Environment,Central Services to the Public,7175,Dvla Vehicle Tax,25/08/2023,12061160,320,vehicle tax renewal 2023,Tax Payments (9311)
Southend-on-Sea Borough Council,http://opendatacommunities.org/id/unitary-authority/southend,ED Children & Public Health,Children And Education Services,3396,McDonalds,25/08/2023,12061160,2.61,food bought for HC as part of engagement to complete RHI,Fast Food Restaurants (5814)
Southend-on-Sea Borough Council,http://opendatacommunities.org/id/unitary-authority/southend,ED Children & Public Health,Children And Education Services,3396,McDonalds,25/08/2023,12061160,4.97,food bought for HC as part of engagement to complete RHI,Fast Food Restaurants (5814)
Southend-on-Sea Borough Council,http://opendatacommunities.org/id/unitary-authority/southend,ED Neighbourhoods & Environment,Central Services to the Public,7175,Dvla Oeppwebecom,25/08/2023,12061160,93.34,DVLA Charge REDACTED PERSONAL DATA,Govt Serv - Default (9399)
Southend-on-Sea Borough Council,http://opendatacommunities.org/id/unitary-authority/southend,ED Neighbourhoods & Environment,Central Services to the Public,7175,Dvla Oeppwebecom,25/08/2023,12061160,93.34,DVLA Charge REDACTED PERSONAL DATA,Govt Serv - Default (9399)
Southend-on-Sea Borough Council,http://opendatacommunities.org/id/unitary-authority/southend,ED Neighbourhoods & Environment,Central Services to the Public,7175,Dvla Oeppwebecom,25/08/2023,12061160,93.34,DVLA Charge REDACTED PERSONAL DATA,Govt Serv - Default (9399)
Southend-on-Sea Borough Council,http://opendatacommunities.org/id/unitary-authority/southend,ED Neighbourhoods & Environment,Central Services to the Public,7175,Dvla Oeppwebecom,25/08/2023,12061160,93.34,DVLA Charge REDACTED PERSONAL DATA,Govt Serv - Default (9399)
Southend-on-Sea Borough Council,http://opendatacommunities.org/id/unitary-authority/southend,ED Neighbourhoods & Environment,Central Services to the Public,7175,Dvla Oeppwebecom,25/08/2023,12061160,120,DVLA Charge REDACTED PERSONAL DATA,Govt Serv - Default (9399)
Southend-on-Sea Borough Council,http://opendatacommunities.org/id/unitary-authority/southend,ED Neighbourhoods & Environment,Central Services to the Public,7175,Dvla Oeppwebecom,25/08/2023,12061160,120,DVLA Charge REDACTED PERSONAL DATA,Govt Serv - Default (9399)
Southend-on-Sea Borough Council,http://opendatacommunities.org/id/unitary-authority/southend,ED Neighbourhoods & Environment,Central Services to the Public,7175,Dvla Vehicle Tax,25/08/2023,12061160,320,Road Fund Licence REDACTED PERSONAL DATA,Tax Payments (9311)
Southend-on-Sea Borough Council,http://opendatacommunities.org/id/unitary-authority/southend,ED Adults & Communities,Cultural And Related Services,4120,Wilko Retail Limited,25/08/2023,12061160,4.2,Screws for picnic tables (City Jam Event).,Misc Gen Merchandise - Def (5399)
Southend-on-Sea Borough Council,http://opendatacommunities.org/id/unitary-authority/southend,ED Children & Public Health,Children And Education Services,3492,Essex County Counci Ec,25/08/2023,12061160,11,Birth Certificate RM,Govt Serv - Default (9399)
Southend-on-Sea Borough Council,http://opendatacommunities.org/id/unitary-authority/southend,ED Children & Public Health,Children And Education Services,3492,Essex County Counci Ec,25/08/2023,12061160,11,Birth Certificate REDACTED PERSONAL DATA,Govt Serv - Default (9399)
Southend-on-Sea Borough Council,http://opendatacommunities.org/id/unitary-authority/southend,ED Children & Public Health,Children And Education Services,3030,Amznmktplace,25/08/2023,12061160,25.99,a4 bulk paper for Cambridge Road family centre,Misc Speciality Retail (5999)
Southend-on-Sea Borough Council,http://opendatacommunities.org/id/unitary-authority/southend,ED Finance & Resources,Central Services to the Public,2070,Edinburgh Airport,25/08/2023,12061160,49.99,RT - Parking Edinburgh Airport 12th - 14th Sept,"Parking Lots, Meters, Garages (7523)"
Southend-on-Sea Borough Council,http://opendatacommunities.org/id/unitary-authority/southend,ED Adults & Communities,Cultural And Related Services,4255,Ikea Ltd Shop Online,25/08/2023,12061160,480,Plants for City Jam - purchased on behalf of REDACTED PERSONAL DATA,Furniture/Equip Stores (5712)
Southend-on-Sea Borough Council,http://opendatacommunities.org/id/unitary-authority/southend,ED Adults & Communities,Cultural And Related Services,4055,Sainsburys S/mkts,26/08/2023,12061160,3.35,Milk for Gallery,Grocery Stores/Supermarkets (5411)
Southend-on-Sea Borough Council,http://opendatacommunities.org/id/unitary-authority/southend,ED Adults & Communities,Cultural And Related Services,4120,Amznmktplace,26/08/2023,12061160,89,Paint pens for the City Jam event.,Misc Speciality Retail (5999)
Southend-on-Sea Borough Council,http://opendatacommunities.org/id/unitary-authority/southend,ED Adults & Communities,Cultural And Related Services,4120,Amznmktplace,26/08/2023,12061160,123.4,"Paint pens for City Jam event. Unable to code to 4230 or 4225, so had to use Pier code.",Misc Speciality Retail (5999)
Southend-on-Sea Borough Council,http://opendatacommunities.org/id/unitary-authority/southend,"ED Strategy, Change & Governance",Central Services to the Public,7140,Amznmktplace,26/08/2023,12061160,8.77,multi tool for stock,Misc Speciality Retail (5999)
Southend-on-Sea Borough Council,http://opendatacommunities.org/id/unitary-authority/southend,ED Adults & Communities,Adult Social Care,1351,Asda Groceries Online,27/08/2023,12061160,37.6,Food shop,Grocery Stores/Supermarkets (5411)
Southend-on-Sea Borough Council,http://opendatacommunities.org/id/unitary-authority/southend,ED Adults & Communities,Adult Social Care,1351,Asda Groceries Online,27/08/2023,12061160,6.75,Food shop,Grocery Stores/Supermarkets (5411)
Southend-on-Sea Borough Council,http://opendatacommunities.org/id/unitary-authority/southend,ED Children & Public Health,Children And Education Services,3471,Amznmktplace,27/08/2023,12061160,10,Replacement Uno game in durable storage tin for use at St Cedd's youth groups.,Misc Speciality Retail (5999)
